Workbook

Sheet Tool
B1: Dämmung | C1: Putz | D1: Grundbauteil | E1: Terzband-Mittenfrequenz in Hz
B2: Dynamische Steifigkeit in MN/m³ | C2: Putzmasse in kg/m² | E2: 50 | F2: 63 | G2: 80 | H2: 100 | I2: 125 | J2: 160 | K2: 200 | L2: 250 | M2: 315 | N2: 400 | O2: 500 | P2: 630 | Q2: 800 | R2: 1000 | S2: 1250 | T2: 1600 | U2: 2000 | V2: 2500 | W2: 3150 | X2: 4000 | Y2: 5000 | AA2: EZW
A3: Eingabewert | B3: 50 | C3: 18 | D3: Schalldämmmaß | E3: 45.9 | F3: 37.6 | G3: 39 | H3: 50.2 | I3: 47.1 | J3: 49.7 | K3: 48.4 | L3: 52.2 | M3: 54.8 | N3: 58.4 | O3: 58.7 | P3: 62.8 | Q3: 62.6 | R3: 64.8 | S3: 66.2 | T3: 69.2 | U3: 70.2 | V3: 71.2 | W3: 73.5 | X3: 77 | Y3: 79.1 | AA3: =einzahlwert($H$3:$W$3) -> 63
A4: Maximalwert | B4: 61 | C4: 18.6 | D4: Maximalwert | E4: 45.9 | F4: 37.6 | G4: 39 | H4: 50.2 | I4: 47.1 | J4: 49.7 | K4: 48.4 | L4: 52.2 | M4: 54.8 | N4: 58.4 | O4: 58.7 | P4: 62.8 | Q4: 62.6 | R4: 64.8 | S4: 66.2 | T4: 69.2 | U4: 70.2 | V4: 71.2 | W4: 73.5 | X4: 77 | Y4: 79.1
A5: Minimalwert | B5: 8 | C5: 4.2 | D5: Minimalwert | E5: 29.71803882 | F5: 28.2 | G5: 37.9 | H5: 40.9 | I5: 42.4 | J5: 36.6 | K5: 38.4 | L5: 40.3 | M5: 41.2 | N5: 42.8 | O5: 46.8 | P5: 48.4 | Q5: 47.3 | R5: 46.1 | S5: 40.5 | T5: 42.4 | U5: 45.1 | V5: 48 | W5: 52.3 | X5: 55.5 | Y5: 58.1
A6: Resonanz-frequenz in Hz | D6: Verbesserungsmaß | E6: =E112+E114+E111+E113+E115 -> -9.886098935 | F6: -6.60348233 | G6: 3.972651442 | H6: -6.017278693 | I6: -3.187190386 | J6: -4.126427827 | K6: -3.568914827 | L6: -6.557203902 | M6: -2.446078759 | N6: 1.769429 | O6: 6.328728886 | P6: 7.444592344 | Q6: 13.46390027 | R6: 14.38334753 | S6: 13.77766505 | T6: 12.45018046 | U6: 11.97246445 | V6: 11.25271909 | W6: 10.31991843 | X6: 9.987572479 | Y6: 11.45499172 | AA6: =AA7-AA3 -> -1
B7: =160*SQRT(B3/C3) -> 266.6666667 | D7: Gesamtkonstruktion | E7: =E6+E3 -> 36.01390106 | F7: 30.99651767 | G7: 42.97265144 | H7: 44.18272131 | I7: 43.91280961 | J7: 45.57357217 | K7: 44.83108517 | L7: 45.6427961 | M7: 52.35392124 | N7: 60.169429 | O7: 65.02872889 | P7: 70.24459234 | Q7: 76.06390027 | R7: 79.18334753 | S7: 79.97766505 | T7: 81.65018046 | U7: 82.17246445 | V7: 82.45271909 | W7: 83.81991843 | X7: 86.98757248 | Y7: 90.55499172 | AA7: =einzahlwert(H7:W7) -> 62
B8: =IF(AND(B3<=B4,B3>=B5),"","FEHLER") ->  | C8: =IF(AND(C3<=C4,C3>=C5),"","FEHLER") ->  | E8: =IF(AND(E3<=E4,E3>=E5),"","FEHLER") -> 
C9: Grundbauteil auswahl: | D9: SHB Beton | E9: =INDEX(Drop_downs!B3:B4,MATCH(Tool!$D$9,Drop_downs!$A$3:$A$4,0)) -> 45.9 | F9: =INDEX(Drop_downs!C3:C4,MATCH(Tool!$D$9,Drop_downs!$A$3:$A$4,0)) -> 37.6 | G9: =INDEX(Drop_downs!D3:D4,MATCH(Tool!$D$9,Drop_downs!$A$3:$A$4,0)) -> 39 | H9: =INDEX(Drop_downs!E3:E4,MATCH(Tool!$D$9,Drop_downs!$A$3:$A$4,0)) -> 50.2 | I9: =INDEX(Drop_downs!F3:F4,MATCH(Tool!$D$9,Drop_downs!$A$3:$A$4,0)) -> 47.1 | J9: =INDEX(Drop_downs!G3:G4,MATCH(Tool!$D$9,Drop_downs!$A$3:$A$4,0)) -> 49.7 | K9: =INDEX(Drop_downs!H3:H4,MATCH(Tool!$D$9,Drop_downs!$A$3:$A$4,0)) -> 48.4 | L9: =INDEX(Drop_downs!I3:I4,MATCH(Tool!$D$9,Drop_downs!$A$3:$A$4,0)) -> 52.2 | M9: =INDEX(Drop_downs!J3:J4,MATCH(Tool!$D$9,Drop_downs!$A$3:$A$4,0)) -> 54.8 | N9: =INDEX(Drop_downs!K3:K4,MATCH(Tool!$D$9,Drop_downs!$A$3:$A$4,0)) -> 58.4 | O9: =INDEX(Drop_downs!L3:L4,MATCH(Tool!$D$9,Drop_downs!$A$3:$A$4,0)) -> 58.7 | P9: =INDEX(Drop_downs!M3:M4,MATCH(Tool!$D$9,Drop_downs!$A$3:$A$4,0)) -> 62.8 | Q9: =INDEX(Drop_downs!N3:N4,MATCH(Tool!$D$9,Drop_downs!$A$3:$A$4,0)) -> 62.6 | R9: =INDEX(Drop_downs!O3:O4,MATCH(Tool!$D$9,Drop_downs!$A$3:$A$4,0)) -> 64.8 | S9: =INDEX(Drop_downs!P3:P4,MATCH(Tool!$D$9,Drop_downs!$A$3:$A$4,0)) -> 66.2 | T9: =INDEX(Drop_downs!Q3:Q4,MATCH(Tool!$D$9,Drop_downs!$A$3:$A$4,0)) -> 69.2 | U9: =INDEX(Drop_downs!R3:R4,MATCH(Tool!$D$9,Drop_downs!$A$3:$A$4,0)) -> 70.2 | V9: =INDEX(Drop_downs!S3:S4,MATCH(Tool!$D$9,Drop_downs!$A$3:$A$4,0)) -> 71.2 | W9: =INDEX(Drop_downs!T3:T4,MATCH(Tool!$D$9,Drop_downs!$A$3:$A$4,0)) -> 73.5 | X9: =INDEX(Drop_downs!U3:U4,MATCH(Tool!$D$9,Drop_downs!$A$3:$A$4,0)) -> 77 | Y9: =INDEX(Drop_downs!V3:V4,MATCH(Tool!$D$9,Drop_downs!$A$3:$A$4,0)) -> 79.1
A10: =IF(COUNTIF(B8:Y8,"FEHLER")>0,"FEHLER IN EINGABE","Eingabe in Ordnung") -> Eingabe in Ordnung
A32: Blattschutz-Kennwort: "shb"
D103: Ergebnismatrix | E103: 23.029752 | F103: 21.46221108 | G103: -227.1994089 | H103: -4.130333783 | I103: -6.36449459 | J103: 10.16553532 | K103: -0.235279105 | L103: 2.21418233 | M103: -1.811932621 | N103: 3.160923589 | O103: 0.9490062936 | P103: 12.14198012 | Q103: 5.862250923 | R103: 11.9959387 | S103: 23.43483259 | T103: 29.7304484 | U103: 33.87339005 | V103: 36.83953599 | W103: 43.97981077 | X103: 48.39064217 | Y103: 35.93143526
E104: -0.8033230078 | F104: -0.7552452158 | G104: 5.9005491 | H104: -0.1144853563 | I104: -0.05553541864 | J104: -0.3509292325 | K104: 0.1240314353 | L104: 0.03960270609 | M104: 0.06832421112 | N104: -0.02141686246 | O104: 0.08567988028 | P104: -0.1674309126 | Q104: -0.01030022416 | R104: -0.1064752502 | S104: -0.2412400413 | T104: -0.3199822655 | U104: -0.3599166987 | V104: -0.3825352018 | W104: -0.4271745101 | X104: -0.4439696693 | Y104: -0.3041083591
E105: 0.05008742411 | F105: -0.01275924658 | G105: 0.0353335879 | H105: 0.1236334773 | I105: 0.1570922361 | J105: 0.05615100511 | K105: -0.1466092897 | L105: -0.1611342118 | M105: -0.1627562378 | N105: -0.1862521974 | O105: -0.0776776349 | P105: -0.1455075111 | Q105: -0.07112262205 | R105: -0.03459110196 | S105: -0.08083002477 | T105: -0.09652354209 | U105: -0.1036386082 | V105: -0.1768940012 | W105: -0.1779161795 | X105: -0.04676491992 | Y105: -0.05611867421
E106: 0.09236734987 | F106: 0.05854289854 | G106: -0.0334257218 | H106: -0.1408713845 | I106: -0.1467665417 | J106: 0.0003866151185 | K106: 0.1408621111 | L106: 0.3014995251 | M106: 0.5731726999 | N106: 0.7048983692 | O106: 0.3991971421 | P106: 0.7530441963 | Q106: 0.6699005493 | R106: 0.6187589224 | S106: 0.5680465192 | T106: 0.5384759635 | U106: 0.4864180626 | V106: 0.5573511757 | W106: 0.3550521879 | X106: -0.05426977414 | Y106: 0.140244082
E107: -26.91947318 | F107: -5.394121081 | G107: -3.65987065 | H107: 3.427696511 | I107: 4.641666944 | J107: 1.338841526 | K107: -9.083621419 | L107: -8.208928355 | M107: -6.557609616 | N107: -7.03262119 | O107: -11.80541277 | P107: -3.697171519 | Q107: -4.090166546 | R107: -3.87521476 | S107: 8.293573345 | T107: -0.4973325358 | U107: -53.34222569 | V107: 236.5790079 | W107: 248.1190362 | X107: -1847.917007 | Y107: -573.1618688
D110: Resonanz-Faktor | E110: =2^(-1*ROUNDDOWN(ABS((3*LOG(E$2/$B$7,2))),0)) -> 0.0078125 | F110: 0.015625 | G110: 0.03125 | H110: 0.0625 | I110: 0.125 | J110: 0.25 | K110: 0.5 | L110: 1 | M110: 1 | N110: 0.5 | O110: 0.25 | P110: 0.125 | Q110: 0.0625 | R110: 0.03125 | S110: 0.015625 | T110: 0.0078125 | U110: 0.00390625 | V110: 0.001953125 | W110: 0.0009765625 | X110: 0.00048828125 | Y110: 0.000244140625
D111: Beitrag Bias | E111: =E103 -> 23.029752 | F111: 21.46221108 | G111: -227.1994089 | H111: -4.130333783 | I111: -6.36449459 | J111: 10.16553532 | K111: -0.235279105 | L111: 2.21418233 | M111: -1.811932621 | N111: 3.160923589 | O111: 0.9490062936 | P111: 12.14198012 | Q111: 5.862250923 | R111: 11.9959387 | S111: 23.43483259 | T111: 29.7304484 | U111: 33.87339005 | V111: 36.83953599 | W111: 43.97981077 | X111: 48.39064217 | Y111: 35.93143526
D112: Beitrag Grundbauteil | E112: =E3*E104 -> -36.87252606 | F112: -28.39722012 | G112: 230.1214149 | H112: -5.747164886 | I112: -2.615718218 | J112: -17.44118286 | K112: 6.00312147 | L112: 2.067261258 | M112: 3.744166769 | N112: -1.250744768 | O112: 5.029408972 | P112: -10.51466131 | Q112: -0.6447940323 | R112: -6.899596214 | S112: -15.97009073 | T112: -22.14277277 | U112: -25.26615225 | V112: -27.23650637 | W112: -31.39732649 | X112: -34.18566453 | Y112: -24.05497121
D113: Beitrag Dämmung | E113: =$B$3*E105 -> 2.504371206 | F113: -0.637962329 | G113: 1.766679395 | H113: 6.181673864 | I113: 7.854611805 | J113: 2.807550255 | K113: -7.330464483 | L113: -8.056710588 | M113: -8.13781189 | N113: -9.312609872 | O113: -3.883881745 | P113: -7.275375554 | Q113: -3.556131102 | R113: -1.729555098 | S113: -4.041501238 | T113: -4.826177105 | U113: -5.181930411 | V113: -8.84470006 | W113: -8.895808977 | X113: -2.338245996 | Y113: -2.805933711
D114: Beitrag Putzmasse | E114: =$C$3*E106 -> 1.662612298 | F114: 1.053772174 | G114: -0.6016629924 | H114: -2.53568492 | I114: -2.641797751 | J114: 0.006959072133 | K114: 2.535518001 | L114: 5.426991452 | M114: 10.3171086 | N114: 12.68817064 | O114: 7.185548559 | P114: 13.55479553 | Q114: 12.05820989 | R114: 11.1376606 | S114: 10.22483735 | T114: 9.692567343 | U114: 8.755525127 | V114: 10.03232116 | W114: 6.390939382 | X114: -0.9768559345 | Y114: 2.524393475
D115: Beitrag Resonanzfaktor | E115: =E110*E107 -> -0.2103083843 | F115: -0.08428314189 | G115: -0.1143709578 | H115: 0.2142310319 | I115: 0.580208368 | J115: 0.3347103816 | K115: -4.54181071 | L115: -8.208928355 | M115: -6.557609616 | N115: -3.516310595 | O115: -2.951353193 | P115: -0.4621464399 | Q115: -0.2556354092 | R115: -0.1211004613 | S115: 0.1295870835 | T115: -0.003885410436 | U115: -0.2083680691 | V115: 0.4620683749 | W115: 0.2423037463 | X115: -0.9023032261 | Y115: -0.1399320969
D116: 95% Konfidenz | E116: 2.654575572 | F116: 2.126967686 | G116: 3.722664603 | H116: 5.139102989 | I116: 5.895437384 | J116: 6.279058622 | K116: 7.438057346 | L116: 6.507421409 | M116: 5.071748787 | N116: 4.861814063 | O116: 3.018075859 | P116: 4.311472413 | Q116: 5.054246071 | R116: 5.167240112 | S116: 3.25102044 | T116: 3.01626501 | U116: 4.815104413 | V116: 5.341122122 | W116: 5.742875169 | X116: 4.877011759 | Y116: 4.283614582
D118: Bezugskurvendelta | E118: =bk_offset(H3:W3) -> 11
D119: Bezugskurve | H119: 33 | I119: 36 | J119: 39 | K119: 42 | L119: 45 | M119: 48 | N119: 51 | O119: 52 | P119: 53 | Q119: 54 | R119: 55 | S119: 55 | T119: 55 | U119: 55 | V119: 55 | W119: 55
D120: verschobene Bezugskurve | H120: =H119+$E$118 -> 44 | I120: =I119+$E$118 -> 47 | J120: 50 | K120: 53 | L120: 56 | M120: 59 | N120: 62 | O120: 63 | P120: 64 | Q120: 65 | R120: 66 | S120: 66 | T120: 66 | U120: 66 | V120: 66 | W120: 66
D121: Strichlierte Linie | H121: -10 | W121: -10

Sheet Varianten (hidden)
B1: 50 | C1: 63 | D1: 80 | E1: 100 | F1: 125 | G1: 160 | H1: 200 | I1: 250 | J1: 315 | K1: 400 | L1: 500 | M1: 630 | N1: 800 | O1: 1000 | P1: 1250 | Q1: 1600 | R1: 2000 | S1: 2500 | T1: 3150 | U1: 4000 | V1: 5000 | X1: EZW
A2: Verbesserungsmaß - Rechnung | B2: =B55+B57+B54+B56+B58 -> 2.336634613 | C2: -0.1221639017 | D2: -1.987139089 | E2: -3.288211693 | F2: -1.403360455 | G2: 0.3276842542 | H2: -3.273745373 | I2: -4.570842943 | J2: -6.841529937 | K2: -9.68014467 | L2: -8.171284529 | M2: -0.2559518553 | N2: 5.209456072 | O2: 9.011851186 | P2: 13.8425143 | Q2: 14.79007106 | R2: 14.72610986 | S2: 14.91761973 | T2: 15.77051242 | U2: 17.34030232 | V2: 15.73849991 | X2: =X4-einzahlwert($E$52:$T$52) -> 0
A3: Verbesserungsmaß - Messung | B3: =INDEX(Messungen!BF5:BF50,$A$42) -> 1.885020901 | C3: =INDEX(Messungen!BG5:BG50,$A$42) -> -0.3 | D3: =INDEX(Messungen!BH5:BH50,$A$42) -> -2.4 | E3: =INDEX(Messungen!BI5:BI50,$A$42) -> -4.3 | F3: =INDEX(Messungen!BJ5:BJ50,$A$42) -> -0.8 | G3: =INDEX(Messungen!BK5:BK50,$A$42) -> 1.8 | H3: =INDEX(Messungen!BL5:BL50,$A$42) -> -2.5 | I3: =INDEX(Messungen!BM5:BM50,$A$42) -> -3.9 | J3: =INDEX(Messungen!BN5:BN50,$A$42) -> -6.4 | K3: =INDEX(Messungen!BO5:BO50,$A$42) -> -9.8 | L3: =INDEX(Messungen!BP5:BP50,$A$42) -> -7.8 | M3: =INDEX(Messungen!BQ5:BQ50,$A$42) -> -0.4 | N3: =INDEX(Messungen!BR5:BR50,$A$42) -> 5.6 | O3: =INDEX(Messungen!BS5:BS50,$A$42) -> 10.1 | P3: =INDEX(Messungen!BT5:BT50,$A$42) -> 14.9 | Q3: =INDEX(Messungen!BU5:BU50,$A$42) -> 15.5 | R3: =INDEX(Messungen!BV5:BV50,$A$42) -> 15.7 | S3: =INDEX(Messungen!BW5:BW50,$A$42) -> 16.3 | T3: =INDEX(Messungen!BX5:BX50,$A$42) -> 17.3 | U3: =INDEX(Messungen!BY5:BY50,$A$42) -> 18.604278 | V3: =INDEX(Messungen!BZ5:BZ50,$A$42) -> 14.06145362 | X3: =X5-einzahlwert($E$52:$T$52) -> 0
A4: Schalldämmmaß - Rechnung | B4: =B2+B52 -> 32.05467343 | C4: =C2+C52 -> 28.0778361 | D4: 35.91286091 | E4: 37.61178831 | F4: 40.99663955 | G4: 36.92768425 | H4: 35.12625463 | I4: 35.72915706 | J4: 34.35847006 | K4: 33.11985533 | L4: 38.62871547 | M4: 48.14404814 | N4: 52.50945607 | O4: 55.11185119 | P4: 54.3425143 | Q4: 57.19007106 | R4: 59.82610986 | S4: 62.91761973 | T4: 68.07051242 | U4: 72.84030232 | V4: 73.83849991 | X4: =einzahlwert(E4:T4) -> 46
A5: Schalldämmmaß - Messung | B5: =B3+B52 -> 31.60305972 | C5: =C3+C52 -> 27.9 | D5: 35.5 | E5: 36.6 | F5: 41.6 | G5: 38.4 | H5: 35.9 | I5: 36.4 | J5: 34.8 | K5: 33 | L5: 39 | M5: 48 | N5: 52.9 | O5: 56.2 | P5: 55.4 | Q5: 57.9 | R5: 60.8 | S5: 64.3 | T5: 69.6 | U5: 74.104278 | V5: 72.16145362 | X5: =einzahlwert(E5:T5) -> 46
A8: Variantennummer aus Dropdown auswählen
A9: 38490314
A30: Blattschutz-Kennwort: "shb"
A41: Parameter aus Zeile | B41: Dämmung | C41: Putzmasse
A42: =MATCH(A9,Messungen!A5:A50,0) -> 11 | B42: =INDEX(Messungen!AC5:AC50,$A$42) -> 52 | C42: =INDEX(Messungen!AF5:AF50,$A$42) -> 6.8
A45: Ergebnismatrix | B45: 23.029752 | C45: 21.46221108 | D45: -227.1994089 | E45: -4.130333783 | F45: -6.36449459 | G45: 10.16553532 | H45: -0.235279105 | I45: 2.21418233 | J45: -1.811932621 | K45: 3.160923589 | L45: 0.9490062936 | M45: 12.14198012 | N45: 5.862250923 | O45: 11.9959387 | P45: 23.43483259 | Q45: 29.7304484 | R45: 33.87339005 | S45: 36.83953599 | T45: 43.97981077 | U45: 48.39064217 | V45: 35.93143526
B46: -0.8033230078 | C46: -0.7552452158 | D46: 5.9005491 | E46: -0.1144853563 | F46: -0.05553541864 | G46: -0.3509292325 | H46: 0.1240314353 | I46: 0.03960270609 | J46: 0.06832421112 | K46: -0.02141686246 | L46: 0.08567988028 | M46: -0.1674309126 | N46: -0.01030022416 | O46: -0.1064752502 | P46: -0.2412400413 | Q46: -0.3199822655 | R46: -0.3599166987 | S46: -0.3825352018 | T46: -0.4271745101 | U46: -0.4439696693 | V46: -0.3041083591
B47: 0.05008742411 | C47: -0.01275924658 | D47: 0.0353335879 | E47: 0.1236334773 | F47: 0.1570922361 | G47: 0.05615100511 | H47: -0.1466092897 | I47: -0.1611342118 | J47: -0.1627562378 | K47: -0.1862521974 | L47: -0.0776776349 | M47: -0.1455075111 | N47: -0.07112262205 | O47: -0.03459110196 | P47: -0.08083002477 | Q47: -0.09652354209 | R47: -0.1036386082 | S47: -0.1768940012 | T47: -0.1779161795 | U47: -0.04676491992 | V47: -0.05611867421
B48: 0.09236734987 | C48: 0.05854289854 | D48: -0.0334257218 | E48: -0.1408713845 | F48: -0.1467665417 | G48: 0.0003866151185 | H48: 0.1408621111 | I48: 0.3014995251 | J48: 0.5731726999 | K48: 0.7048983692 | L48: 0.3991971421 | M48: 0.7530441963 | N48: 0.6699005493 | O48: 0.6187589224 | P48: 0.5680465192 | Q48: 0.5384759635 | R48: 0.4864180626 | S48: 0.5573511757 | T48: 0.3550521879 | U48: -0.05426977414 | V48: 0.140244082
B49: -26.91947318 | C49: -5.394121081 | D49: -3.65987065 | E49: 3.427696511 | F49: 4.641666944 | G49: 1.338841526 | H49: -9.083621419 | I49: -8.208928355 | J49: -6.557609616 | K49: -7.03262119 | L49: -11.80541277 | M49: -3.697171519 | N49: -4.090166546 | O49: -3.87521476 | P49: 8.293573345 | Q49: -0.4973325358 | R49: -53.34222569 | S49: 236.5790079 | T49: 248.1190362 | U49: -1847.917007 | V49: -573.1618688
A52: Schaldämmmaß - Grundbauteil | B52: =INDEX(Messungen!F5:F50,$A$42) -> 29.71803882 | C52: =INDEX(Messungen!G5:G50,$A$42) -> 28.2 | D52: =INDEX(Messungen!H5:H50,$A$42) -> 37.9 | E52: =INDEX(Messungen!I5:I50,$A$42) -> 40.9 | F52: =INDEX(Messungen!J5:J50,$A$42) -> 42.4 | G52: =INDEX(Messungen!K5:K50,$A$42) -> 36.6 | H52: =INDEX(Messungen!L5:L50,$A$42) -> 38.4 | I52: =INDEX(Messungen!M5:M50,$A$42) -> 40.3 | J52: =INDEX(Messungen!N5:N50,$A$42) -> 41.2 | K52: =INDEX(Messungen!O5:O50,$A$42) -> 42.8 | L52: =INDEX(Messungen!P5:P50,$A$42) -> 46.8 | M52: =INDEX(Messungen!Q5:Q50,$A$42) -> 48.4 | N52: =INDEX(Messungen!R5:R50,$A$42) -> 47.3 | O52: =INDEX(Messungen!S5:S50,$A$42) -> 46.1 | P52: =INDEX(Messungen!T5:T50,$A$42) -> 40.5 | Q52: =INDEX(Messungen!U5:U50,$A$42) -> 42.4 | R52: =INDEX(Messungen!V5:V50,$A$42) -> 45.1 | S52: =INDEX(Messungen!W5:W50,$A$42) -> 48 | T52: =INDEX(Messungen!X5:X50,$A$42) -> 52.3 | U52: =INDEX(Messungen!Y5:Y50,$A$42) -> 55.5 | V52: =INDEX(Messungen!Z5:Z50,$A$42) -> 58.1
A53: Resonanz-Faktor | B53: =INDEX(Messungen!AK5:AK50,$A$42) -> 0.001953125 | C53: =INDEX(Messungen!AL5:AL50,$A$42) -> 0.00390625 | D53: =INDEX(Messungen!AM5:AM50,$A$42) -> 0.0078125 | E53: =INDEX(Messungen!AN5:AN50,$A$42) -> 0.015625 | F53: =INDEX(Messungen!AO5:AO50,$A$42) -> 0.03125 | G53: =INDEX(Messungen!AP5:AP50,$A$42) -> 0.0625 | H53: =INDEX(Messungen!AQ5:AQ50,$A$42) -> 0.125 | I53: =INDEX(Messungen!AR5:AR50,$A$42) -> 0.25 | J53: =INDEX(Messungen!AS5:AS50,$A$42) -> 0.5 | K53: =INDEX(Messungen!AT5:AT50,$A$42) -> 1 | L53: =INDEX(Messungen!AU5:AU50,$A$42) -> 1 | M53: =INDEX(Messungen!AV5:AV50,$A$42) -> 0.5 | N53: =INDEX(Messungen!AW5:AW50,$A$42) -> 0.25 | O53: =INDEX(Messungen!AX5:AX50,$A$42) -> 0.125 | P53: =INDEX(Messungen!AY5:AY50,$A$42) -> 0.0625 | Q53: =INDEX(Messungen!AZ5:AZ50,$A$42) -> 0.03125 | R53: =INDEX(Messungen!BA5:BA50,$A$42) -> 0.015625 | S53: =INDEX(Messungen!BB5:BB50,$A$42) -> 0.0078125 | T53: =INDEX(Messungen!BC5:BC50,$A$42) -> 0.00390625 | U53: =INDEX(Messungen!BD5:BD50,$A$42) -> 0.001953125 | V53: =INDEX(Messungen!BE5:BE50,$A$42) -> 0.0009765625
A54: Beitrag Bias | B54: =B45 -> 23.029752 | C54: 21.46221108 | D54: -227.1994089 | E54: -4.130333783 | F54: -6.36449459 | G54: 10.16553532 | H54: -0.235279105 | I54: 2.21418233 | J54: -1.811932621 | K54: 3.160923589 | L54: 0.9490062936 | M54: 12.14198012 | N54: 5.862250923 | O54: 11.9959387 | P54: 23.43483259 | Q54: 29.7304484 | R54: 33.87339005 | S54: 36.83953599 | T54: 43.97981077 | U54: 48.39064217 | V54: 35.93143526
A55: Beitrag Grundbauteil | B55: =B52*B46 -> -23.87318433 | C55: -21.29791509 | D55: 223.6308109 | E55: -4.682451073 | F55: -2.35470175 | G55: -12.84400991 | H55: 4.762807117 | I55: 1.595989056 | J55: 2.814957498 | K55: -0.9166417132 | L55: 4.009818397 | M55: -8.103656171 | N55: -0.4872006027 | O55: -4.908509035 | P55: -9.770221672 | Q55: -13.56724806 | R55: -16.23224311 | S55: -18.36168969 | T55: -22.34122688 | U55: -24.64031665 | V55: -17.66869567
A56: Beitrag Dämmung | B56: =$B$42*B47 -> 2.604546054 | C56: -0.6634808222 | D56: 1.837346571 | E56: 6.428940819 | F56: 8.168796277 | G56: 2.919852266 | H56: -7.623683063 | I56: -8.378979011 | J56: -8.463324366 | K56: -9.685114266 | L56: -4.039237015 | M56: -7.566390576 | N56: -3.698376346 | O56: -1.798737302 | P56: -4.203161288 | Q56: -5.019224189 | R56: -5.389207627 | S56: -9.198488063 | T56: -9.251641336 | U56: -2.431775836 | V56: -2.918171059
A57: Beitrag Putzmasse | B57: =$C$42*B48 -> 0.6280979791 | C57: 0.3980917101 | D57: -0.2272949082 | E57: -0.9579254143 | F57: -0.9980124837 | G57: 0.002628982806 | H57: 0.9578623558 | I57: 2.050196771 | J57: 3.897574359 | K57: 4.79330891 | L57: 2.714540567 | M57: 5.120700535 | N57: 4.555323735 | O57: 4.207560672 | P57: 3.862716331 | Q57: 3.661636552 | R57: 3.307642826 | S57: 3.789987995 | T57: 2.414354878 | U57: -0.3690344641 | V57: 0.9536597574
A58: Beitrag Resonanzfaktor | B58: =B53*B49 -> -0.05257709606 | C58: -0.02107078547 | D58: -0.02859273945 | E58: 0.05355775799 | F58: 0.145052092 | G58: 0.0836775954 | H58: -1.135452677 | I58: -2.052232089 | J58: -3.278804808 | K58: -7.03262119 | L58: -11.80541277 | M58: -1.84858576 | N58: -1.022541637 | O58: -0.484401845 | P58: 0.5183483341 | Q58: -0.01554164174 | R58: -0.8334722763 | S58: 1.8482735 | T58: 0.9692149851 | U58: -3.609212904 | V58: -0.5597283875
A60: 95% Konfidenz | B60: 2.287054111 | C60: 2.089270994 | D60: 2.769063702 | E60: 4.338434279 | F60: 5.080798029 | G60: 5.169526114 | H60: 6.025968427 | I60: 5.070960885 | J60: 5.082571992 | K60: 4.042562664 | L60: 2.6816746 | M60: 4.347198897 | N60: 4.610655983 | O60: 4.362764764 | P60: 3.090179552 | Q60: 3.182161418 | R60: 4.273310654 | S60: 5.005015215 | T60: 5.443473858 | U60: 4.704547925 | V60: 4.388989036 | X60: 2.53382796

Sheet Messungen (hidden)
F2: Schalldämmmaß_Grundbauteil | AK2: 10- abs(Abstand zu Resonanzfrequenz) | BF2: Lösungsvektor y: Verbesserungsmaß | CA2: Vorhersage_Verbesserungsmaß
F3: dB | AC3: Dynamische Steifigkeit des Dämmstoffes | AD3: Putzdicke | AE3: Putzdichte | AF3: Putzmasse | AG3: Anzahl der Dübel | AK3: in TB | BF3: dB
A4: Variantennummer | B4: Zeile | C4: Grundbauteilnummer | D4: Zeile | F4: 50 | G4: 63 | H4: 80 | I4: 100 | J4: 125 | K4: 160 | L4: 200 | M4: 250 | N4: 315 | O4: 400 | P4: 500 | Q4: 630 | R4: 800 | S4: 1000 | T4: 1250 | U4: 1600 | V4: 2000 | W4: 2500 | X4: 3150 | Y4: 4000 | Z4: 5000 | AA4: EZW_Grundbauteil | AB4: EZW_Konstruktion | AC4: MN/m3 | AD4: m | AE4: kg/m3 | AF4: gm/m2 | AG4: 1 | AH4: Messung bei Resonanzeinbruch | AI4: Resonanzeinbruch in TB | AJ4: Berechnete Resonanzfrequenz | AK4: 50 | AL4: 63 | AM4: 80 | AN4: 100 | AO4: 125 | AP4: 160 | AQ4: 200 | AR4: 250 | AS4: 315 | AT4: 400 | AU4: 500 | AV4: 630 | AW4: 800 | AX4: 1000 | AY4: 1250 | AZ4: 1600 | BA4: 2000 | BB4: 2500 | BC4: 3150 | BD4: 4000 | BE4: 5000 | BF4: 50 | BG4: 63 | BH4: 80 | BI4: 100 | BJ4: 125 | BK4: 160 | BL4: 200 | BM4: 250 | BN4: 315 | BO4: 400 | BP4: 500 | BQ4: 630 | BR4: 800 | BS4: 1000 | BT4: 1250 | BU4: 1600 | BV4: 2000 | BW4: 2500 | BX4: 3150 | BY4: 4000 | BZ4: 5000 | CA4: EZW
A5: 38490303 | B5: 7 | C5: 384900301 | D5: 67 | F5: 29.71803882 | G5: 28.2 | H5: 37.9 | I5: 40.9 | J5: 42.4 | K5: 36.6 | L5: 38.4 | M5: 40.3 | N5: 41.2 | O5: 42.8 | P5: 46.8 | Q5: 48.4 | R5: 47.3 | S5: 46.1 | T5: 40.5 | U5: 42.4 | V5: 45.1 | W5: 48 | X5: 52.3 | Y5: 55.5 | Z5: 58.1 | AA5: 46 | AB5: 46 | AC5: 52 | AD5: 0.005 | AE5: 1200 | AF5: 6.8 | AG5: 0 | AH5: -10.4 | AI5: 400 | AJ5: 442.453055 | AK5: 0.001953125 | AL5: 0.00390625 | AM5: 0.0078125 | AN5: 0.015625 | AO5: 0.03125 | AP5: 0.0625 | AQ5: 0.125 | AR5: 0.25 | AS5: 0.5 | AT5: 1 | AU5: 1 | AV5: 0.5 | AW5: 0.25 | AX5: 0.125 | AY5: 0.0625 | AZ5: 0.03125 | BA5: 0.015625 | BB5: 0.0078125 | BC5: 0.00390625 | BD5: 0.001953125 | BE5: 0.0009765625 | BF5: 2.511067005 | BG5: -0.1 | BH5: -1.8 | BI5: -2.7 | BJ5: -1.6 | BK5: -1 | BL5: -2.5 | BM5: -5.1 | BN5: -8.1 | BO5: -10.4 | BP5: -7.2 | BQ5: 1.9 | BR5: 8.6 | BS5: 12.7 | BT5: 13.5 | BU5: 13.2 | BV5: 12.8 | BW5: 12.5 | BX5: 12.3 | BY5: 15.3 | BZ5: 13.52491964 | CA5: 0
A6: 38490304 | B6: 8 | C6: 384900301 | D6: 67 | F6: 29.71803882 | G6: 28.2 | H6: 37.9 | I6: 40.9 | J6: 42.4 | K6: 36.6 | L6: 38.4 | M6: 40.3 | N6: 41.2 | O6: 42.8 | P6: 46.8 | Q6: 48.4 | R6: 47.3 | S6: 46.1 | T6: 40.5 | U6: 42.4 | V6: 45.1 | W6: 48 | X6: 52.3 | Y6: 55.5 | Z6: 58.1 | AA6: 46 | AB6: 46 | AC6: 52 | AD6: 0.005 | AE6: 1200 | AF6: 6.8 | AG6: 6 | AH6: -9.8 | AI6: 400 | AJ6: 442.453055 | AK6: 0.001953125 | AL6: 0.00390625 | AM6: 0.0078125 | AN6: 0.015625 | AO6: 0.03125 | AP6: 0.0625 | AQ6: 0.125 | AR6: 0.25 | AS6: 0.5 | AT6: 1 | AU6: 1 | AV6: 0.5 | AW6: 0.25 | AX6: 0.125 | AY6: 0.0625 | AZ6: 0.03125 | BA6: 0.015625 | BB6: 0.0078125 | BC6: 0.00390625 | BD6: 0.001953125 | BE6: 0.0009765625 | BF6: 2.60175482 | BG6: -0.1 | BH6: -1.5 | BI6: -2.9 | BJ6: 0.3 | BK6: 0.4 | BL6: -3.2 | BM6: -4.9 | BN6: -7.3 | BO6: -9.8 | BP6: -7.2 | BQ6: 1 | BR6: 7.4 | BS6: 10.5 | BT6: 13.4 | BU6: 13.4 | BV6: 13.4 | BW6: 13.4 | BX6: 13.8 | BY6: 16.08700718 | BZ6: 15.53249929 | CA6: 0
A7: 38490306 | B7: 10 | C7: 384900301 | D7: 67 | F7: 29.71803882 | G7: 28.2 | H7: 37.9 | I7: 40.9 | J7: 42.4 | K7: 36.6 | L7: 38.4 | M7: 40.3 | N7: 41.2 | O7: 42.8 | P7: 46.8 | Q7: 48.4 | R7: 47.3 | S7: 46.1 | T7: 40.5 | U7: 42.4 | V7: 45.1 | W7: 48 | X7: 52.3 | Y7: 55.5 | Z7: 58.1 | AA7: 46 | AB7: 46 | AC7: 52 | AD7: 0.005 | AE7: 1200 | AF7: 6.8 | AG7: 6 | AH7: -9.5 | AI7: 400 | AJ7: 442.453055 | AK7: 0.001953125 | AL7: 0.00390625 | AM7: 0.0078125 | AN7: 0.015625 | AO7: 0.03125 | AP7: 0.0625 | AQ7: 0.125 | AR7: 0.25 | AS7: 0.5 | AT7: 1 | AU7: 1 | AV7: 0.5 | AW7: 0.25 | AX7: 0.125 | AY7: 0.0625 | AZ7: 0.03125 | BA7: 0.015625 | BB7: 0.0078125 | BC7: 0.00390625 | BD7: 0.001953125 | BE7: 0.0009765625 | BF7: 1.864985853 | BG7: -0.1 | BH7: -1.7 | BI7: -3.7 | BJ7: -0.2 | BK7: 0.3 | BL7: -2.6 | BM7: -5.2 | BN7: -7.3 | BO7: -9.5 | BP7: -6.8 | BQ7: 1.8 | BR7: 8.5 | BS7: 8.1 | BT7: 11.1 | BU7: 13.5 | BV7: 13.2 | BW7: 13 | BX7: 12.7 | BY7: 13.6 | BZ7: 13.48799759 | CA7: 0
A8: 38490307 | B8: 11 | C8: 384900301 | D8: 67 | F8: 29.71803882 | G8: 28.2 | H8: 37.9 | I8: 40.9 | J8: 42.4 | K8: 36.6 | L8: 38.4 | M8: 40.3 | N8: 41.2 | O8: 42.8 | P8: 46.8 | Q8: 48.4 | R8: 47.3 | S8: 46.1 | T8: 40.5 | U8: 42.4 | V8: 45.1 | W8: 48 | X8: 52.3 | Y8: 55.5 | Z8: 58.1 | AA8: 46 | AB8: 46 | AC8: 52 | AD8: 0.005 | AE8: 1200 | AF8: 6.8 | AG8: 6 | AH8: -9.5 | AI8: 400 | AJ8: 442.453055 | AK8: 0.001953125 | AL8: 0.00390625 | AM8: 0.0078125 | AN8: 0.015625 | AO8: 0.03125 | AP8: 0.0625 | AQ8: 0.125 | AR8: 0.25 | AS8: 0.5 | AT8: 1 | AU8: 1 | AV8: 0.5 | AW8: 0.25 | AX8: 0.125 | AY8: 0.0625 | AZ8: 0.03125 | BA8: 0.015625 | BB8: 0.0078125 | BC8: 0.00390625 | BD8: 0.001953125 | BE8: 0.0009765625 | BF8: 2.690652193 | BG8: -0.7 | BH8: -2 | BI8: -3.5 | BJ8: -0.5 | BK8: 0.3 | BL8: -2.8 | BM8: -5.2 | BN8: -7.3 | BO8: -9.5 | BP8: -6.7 | BQ8: 1.3 | BR8: 8.2 | BS8: 12 | BT8: 14.4 | BU8: 14 | BV8: 14 | BW8: 14 | BX8: 14.7 | BY8: 17.37529666 | BZ8: 16.83733424 | CA8: 0
A9: 38490308 | B9: 12 | C9: 384900301 | D9: 67 | F9: 29.71803882 | G9: 28.2 | H9: 37.9 | I9: 40.9 | J9: 42.4 | K9: 36.6 | L9: 38.4 | M9: 40.3 | N9: 41.2 | O9: 42.8 | P9: 46.8 | Q9: 48.4 | R9: 47.3 | S9: 46.1 | T9: 40.5 | U9: 42.4 | V9: 45.1 | W9: 48 | X9: 52.3 | Y9: 55.5 | Z9: 58.1 | AA9: 46 | AB9: 46 | AC9: 52 | AD9: 0.005 | AE9: 1200 | AF9: 6.8 | AG9: 6 | AH9: -9.9 | AI9: 400 | AJ9: 442.453055 | AK9: 0.001953125 | AL9: 0.00390625 | AM9: 0.0078125 | AN9: 0.015625 | AO9: 0.03125 | AP9: 0.0625 | AQ9: 0.125 | AR9: 0.25 | AS9: 0.5 | AT9: 1 | AU9: 1 | AV9: 0.5 | AW9: 0.25 | AX9: 0.125 | AY9: 0.0625 | AZ9: 0.03125 | BA9: 0.015625 | BB9: 0.0078125 | BC9: 0.00390625 | BD9: 0.001953125 | BE9: 0.0009765625 | BF9: 2.137882285 | BG9: -0.9 | BH9: -1.4 | BI9: -2.7 | BJ9: -0.7 | BK9: -0.2 | BL9: -3.3 | BM9: -5.4 | BN9: -7.1 | BO9: -9.9 | BP9: -7.3 | BQ9: 0.6 | BR9: 6.6 | BS9: 10.5 | BT9: 13.7 | BU9: 13.6 | BV9: 13.7 | BW9: 13.9 | BX9: 14.5 | BY9: 17.00988551 | BZ9: 15.37718966 | CA9: 0
A10: 38490309 | B10: 13 | C10: 384900301 | D10: 67 | F10: 29.71803882 | G10: 28.2 | H10: 37.9 | I10: 40.9 | J10: 42.4 | K10: 36.6 | L10: 38.4 | M10: 40.3 | N10: 41.2 | O10: 42.8 | P10: 46.8 | Q10: 48.4 | R10: 47.3 | S10: 46.1 | T10: 40.5 | U10: 42.4 | V10: 45.1 | W10: 48 | X10: 52.3 | Y10: 55.5 | Z10: 58.1 | AA10: 46 | AB10: 46 | AC10: 52 | AD10: 0.005 | AE10: 1200 | AF10: 6.8 | AG10: 10 | AH10: -9.1 | AI10: 400 | AJ10: 442.453055 | AK10: 0.001953125 | AL10: 0.00390625 | AM10: 0.0078125 | AN10: 0.015625 | AO10: 0.03125 | AP10: 0.0625 | AQ10: 0.125 | AR10: 0.25 | AS10: 0.5 | AT10: 1 | AU10: 1 | AV10: 0.5 | AW10: 0.25 | AX10: 0.125 | AY10: 0.0625 | AZ10: 0.03125 | BA10: 0.015625 | BB10: 0.0078125 | BC10: 0.00390625 | BD10: 0.001953125 | BE10: 0.0009765625 | BF10: 3.216213275 | BG10: 1.8 | BH10: -3.3 | BI10: -5.5 | BJ10: -1.4 | BK10: 1.5 | BL10: -2.5 | BM10: -4.4 | BN10: -6.8 | BO10: -9.1 | BP10: -7.4 | BQ10: 0 | BR10: 6.1 | BS10: 11.1 | BT10: 14.5 | BU10: 14.6 | BV10: 9.3 | BW10: 12.4 | BX10: 14.3 | BY10: 13.5 | BZ10: 13.61831856 | CA10: 0
A11: 38490310 | B11: 14 | C11: 384900301 | D11: 67 | F11: 29.71803882 | G11: 28.2 | H11: 37.9 | I11: 40.9 | J11: 42.4 | K11: 36.6 | L11: 38.4 | M11: 40.3 | N11: 41.2 | O11: 42.8 | P11: 46.8 | Q11: 48.4 | R11: 47.3 | S11: 46.1 | T11: 40.5 | U11: 42.4 | V11: 45.1 | W11: 48 | X11: 52.3 | Y11: 55.5 | Z11: 58.1 | AA11: 46 | AB11: 46 | AC11: 52 | AD11: 0.005 | AE11: 1200 | AF11: 6.8 | AG11: 10 | AH11: -9.3 | AI11: 400 | AJ11: 442.453055 | AK11: 0.001953125 | AL11: 0.00390625 | AM11: 0.0078125 | AN11: 0.015625 | AO11: 0.03125 | AP11: 0.0625 | AQ11: 0.125 | AR11: 0.25 | AS11: 0.5 | AT11: 1 | AU11: 1 | AV11: 0.5 | AW11: 0.25 | AX11: 0.125 | AY11: 0.0625 | AZ11: 0.03125 | BA11: 0.015625 | BB11: 0.0078125 | BC11: 0.00390625 | BD11: 0.001953125 | BE11: 0.0009765625 | BF11: 1.731179047 | BG11: 0.6 | BH11: -2.2 | BI11: -6.8 | BJ11: 0.4 | BK11: 2.3 | BL11: -2.4 | BM11: -4.1 | BN11: -7 | BO11: -9.3 | BP11: -7.1 | BQ11: 0.3 | BR11: 6.5 | BS11: 11.5 | BT11: 15.8 | BU11: 16.2 | BV11: 16 | BW11: 16.5 | BX11: 17.6 | BY11: 19.20750131 | BZ11: 17.31040322 | CA11: 0
A12: 38490311 | B12: 15 | C12: 384900301 | D12: 67 | F12: 29.71803882 | G12: 28.2 | H12: 37.9 | I12: 40.9 | J12: 42.4 | K12: 36.6 | L12: 38.4 | M12: 40.3 | N12: 41.2 | O12: 42.8 | P12: 46.8 | Q12: 48.4 | R12: 47.3 | S12: 46.1 | T12: 40.5 | U12: 42.4 | V12: 45.1 | W12: 48 | X12: 52.3 | Y12: 55.5 | Z12: 58.1 | AA12: 46 | AB12: 46 | AC12: 52 | AD12: 0.005 | AE12: 1200 | AF12: 6.8 | AG12: 10 | AH12: -9.8 | AI12: 400 | AJ12: 442.453055 | AK12: 0.001953125 | AL12: 0.00390625 | AM12: 0.0078125 | AN12: 0.015625 | AO12: 0.03125 | AP12: 0.0625 | AQ12: 0.125 | AR12: 0.25 | AS12: 0.5 | AT12: 1 | AU12: 1 | AV12: 0.5 | AW12: 0.25 | AX12: 0.125 | AY12: 0.0625 | AZ12: 0.03125 | BA12: 0.015625 | BB12: 0.0078125 | BC12: 0.00390625 | BD12: 0.001953125 | BE12: 0.0009765625 | BF12: 2.260129057 | BG12: 0.9 | BH12: -2.3 | BI12: -4.7 | BJ12: -1.4 | BK12: 1 | BL12: -3 | BM12: -4.7 | BN12: -6.8 | BO12: -9.8 | BP12: -8.1 | BQ12: -0.2 | BR12: 5.3 | BS12: 10 | BT12: 15.1 | BU12: 15.8 | BV12: 15.6 | BW12: 16.3 | BX12: 17.2 | BY12: 19.01548149 | BZ12: 17.05926275 | CA12: 0
A13: 38490312 | B13: 16 | C13: 384900301 | D13: 67 | F13: 29.71803882 | G13: 28.2 | H13: 37.9 | I13: 40.9 | J13: 42.4 | K13: 36.6 | L13: 38.4 | M13: 40.3 | N13: 41.2 | O13: 42.8 | P13: 46.8 | Q13: 48.4 | R13: 47.3 | S13: 46.1 | T13: 40.5 | U13: 42.4 | V13: 45.1 | W13: 48 | X13: 52.3 | Y13: 55.5 | Z13: 58.1 | AA13: 46 | AB13: 46 | AC13: 52 | AD13: 0.005 | AE13: 1200 | AF13: 6.8 | AG13: 12 | AH13: -9.6 | AI13: 400 | AJ13: 442.453055 | AK13: 0.001953125 | AL13: 0.00390625 | AM13: 0.0078125 | AN13: 0.015625 | AO13: 0.03125 | AP13: 0.0625 | AQ13: 0.125 | AR13: 0.25 | AS13: 0.5 | AT13: 1 | AU13: 1 | AV13: 0.5 | AW13: 0.25 | AX13: 0.125 | AY13: 0.0625 | AZ13: 0.03125 | BA13: 0.015625 | BB13: 0.0078125 | BC13: 0.00390625 | BD13: 0.001953125 | BE13: 0.0009765625 | BF13: 2.453345535 | BG13: 0.6 | BH13: -2.8 | BI13: -5.1 | BJ13: -1.6 | BK13: 1 | BL13: -2.6 | BM13: -4 | BN13: -6.7 | BO13: -9.6 | BP13: -8 | BQ13: -0.6 | BR13: 5.3 | BS13: 9.8 | BT13: 14.9 | BU13: 15.5 | BV13: 15.5 | BW13: 16.1 | BX13: 17.3 | BY13: 18.43369503 | BZ13: 16.5196569 | CA13: 0
A14: 38490313 | B14: 17 | C14: 384900301 | D14: 67 | F14: 29.71803882 | G14: 28.2 | H14: 37.9 | I14: 40.9 | J14: 42.4 | K14: 36.6 | L14: 38.4 | M14: 40.3 | N14: 41.2 | O14: 42.8 | P14: 46.8 | Q14: 48.4 | R14: 47.3 | S14: 46.1 | T14: 40.5 | U14: 42.4 | V14: 45.1 | W14: 48 | X14: 52.3 | Y14: 55.5 | Z14: 58.1 | AA14: 46 | AB14: 46 | AC14: 52 | AD14: 0.005 | AE14: 1200 | AF14: 6.8 | AG14: 12 | AH14: -9.9 | AI14: 400 | AJ14: 442.453055 | AK14: 0.001953125 | AL14: 0.00390625 | AM14: 0.0078125 | AN14: 0.015625 | AO14: 0.03125 | AP14: 0.0625 | AQ14: 0.125 | AR14: 0.25 | AS14: 0.5 | AT14: 1 | AU14: 1 | AV14: 0.5 | AW14: 0.25 | AX14: 0.125 | AY14: 0.0625 | AZ14: 0.03125 | BA14: 0.015625 | BB14: 0.0078125 | BC14: 0.00390625 | BD14: 0.001953125 | BE14: 0.0009765625 | BF14: 2.321588232 | BG14: 1.3 | BH14: -2 | BI14: -4.8 | BJ14: -1.5 | BK14: 0.9 | BL14: -3 | BM14: -4.3 | BN14: -6.7 | BO14: -9.9 | BP14: -7.7 | BQ14: -0.3 | BR14: 5.5 | BS14: 8.9 | BT14: 13.1 | BU14: 15.4 | BV14: 15.3 | BW14: 15.8 | BX14: 16.2 | BY14: 16.49744369 | BZ14: 13.78614459 | CA14: 0
A15: 38490314 | B15: 18 | C15: 384900301 | D15: 67 | F15: 29.71803882 | G15: 28.2 | H15: 37.9 | I15: 40.9 | J15: 42.4 | K15: 36.6 | L15: 38.4 | M15: 40.3 | N15: 41.2 | O15: 42.8 | P15: 46.8 | Q15: 48.4 | R15: 47.3 | S15: 46.1 | T15: 40.5 | U15: 42.4 | V15: 45.1 | W15: 48 | X15: 52.3 | Y15: 55.5 | Z15: 58.1 | AA15: 46 | AB15: 46 | AC15: 52 | AD15: 0.005 | AE15: 1200 | AF15: 6.8 | AG15: 12 | AH15: -9.8 | AI15: 400 | AJ15: 442.453055 | AK15: 0.001953125 | AL15: 0.00390625 | AM15: 0.0078125 | AN15: 0.015625 | AO15: 0.03125 | AP15: 0.0625 | AQ15: 0.125 | AR15: 0.25 | AS15: 0.5 | AT15: 1 | AU15: 1 | AV15: 0.5 | AW15: 0.25 | AX15: 0.125 | AY15: 0.0625 | AZ15: 0.03125 | BA15: 0.015625 | BB15: 0.0078125 | BC15: 0.00390625 | BD15: 0.001953125 | BE15: 0.0009765625 | BF15: 1.885020901 | BG15: -0.3 | BH15: -2.4 | BI15: -4.3 | BJ15: -0.8 | BK15: 1.8 | BL15: -2.5 | BM15: -3.9 | BN15: -6.4 | BO15: -9.8 | BP15: -7.8 | BQ15: -0.4 | BR15: 5.6 | BS15: 10.1 | BT15: 14.9 | BU15: 15.5 | BV15: 15.7 | BW15: 16.3 | BX15: 17.3 | BY15: 18.604278 | BZ15: 14.06145362 | CA15: 0
A16: 38490315 | B16: 19 | C16: 384900301 | D16: 67 | F16: 29.71803882 | G16: 28.2 | H16: 37.9 | I16: 40.9 | J16: 42.4 | K16: 36.6 | L16: 38.4 | M16: 40.3 | N16: 41.2 | O16: 42.8 | P16: 46.8 | Q16: 48.4 | R16: 47.3 | S16: 46.1 | T16: 40.5 | U16: 42.4 | V16: 45.1 | W16: 48 | X16: 52.3 | Y16: 55.5 | Z16: 58.1 | AA16: 46 | AB16: 46 | AC16: 52 | AD16: 0.005 | AE16: 1200 | AF16: 6.8 | AG16: 12 | AH16: -9.7 | AI16: 400 | AJ16: 442.453055 | AK16: 0.001953125 | AL16: 0.00390625 | AM16: 0.0078125 | AN16: 0.015625 | AO16: 0.03125 | AP16: 0.0625 | AQ16: 0.125 | AR16: 0.25 | AS16: 0.5 | AT16: 1 | AU16: 1 | AV16: 0.5 | AW16: 0.25 | AX16: 0.125 | AY16: 0.0625 | AZ16: 0.03125 | BA16: 0.015625 | BB16: 0.0078125 | BC16: 0.00390625 | BD16: 0.001953125 | BE16: 0.0009765625 | BF16: 1.247313358 | BG16: 1.1 | BH16: -2.7 | BI16: -3.8 | BJ16: -0.8 | BK16: 1.2 | BL16: -2.4 | BM16: -3.9 | BN16: -6.3 | BO16: -9.7 | BP16: -8.1 | BQ16: -0.4 | BR16: 5.1 | BS16: 9.9 | BT16: 14.8 | BU16: 15.5 | BV16: 15.6 | BW16: 16.2 | BX16: 17.5 | BY16: 18.78468845 | BZ16: 15.26856068 | CA16: 0
A17: 38490316 | B17: 20 | C17: 384900301 | D17: 67 | F17: 29.71803882 | G17: 28.2 | H17: 37.9 | I17: 40.9 | J17: 42.4 | K17: 36.6 | L17: 38.4 | M17: 40.3 | N17: 41.2 | O17: 42.8 | P17: 46.8 | Q17: 48.4 | R17: 47.3 | S17: 46.1 | T17: 40.5 | U17: 42.4 | V17: 45.1 | W17: 48 | X17: 52.3 | Y17: 55.5 | Z17: 58.1 | AA17: 46 | AB17: 46 | AC17: 52 | AD17: 0.005 | AE17: 1200 | AF17: 6.8 | AG17: 12 | AH17: -9.7 | AI17: 400 | AJ17: 442.453055 | AK17: 0.001953125 | AL17: 0.00390625 | AM17: 0.0078125 | AN17: 0.015625 | AO17: 0.03125 | AP17: 0.0625 | AQ17: 0.125 | AR17: 0.25 | AS17: 0.5 | AT17: 1 | AU17: 1 | AV17: 0.5 | AW17: 0.25 | AX17: 0.125 | AY17: 0.0625 | AZ17: 0.03125 | BA17: 0.015625 | BB17: 0.0078125 | BC17: 0.00390625 | BD17: 0.001953125 | BE17: 0.0009765625 | BF17: 2.36275572 | BG17: -0.1 | BH17: -1.5 | BI17: -2.8 | BJ17: -1.6 | BK17: 0.3 | BL17: -3.4 | BM17: -4.3 | BN17: -6.7 | BO17: -9.7 | BP17: -8 | BQ17: -0.7 | BR17: 5.2 | BS17: 9.8 | BT17: 14.7 | BU17: 15.5 | BV17: 15.6 | BW17: 16.2 | BX17: 17.3 | BY17: 18.86592813 | BZ17: 17.24315639 | CA17: 0
A18: 38490317 | B18: 21 | C18: 384900301 | D18: 67 | F18: 29.71803882 | G18: 28.2 | H18: 37.9 | I18: 40.9 | J18: 42.4 | K18: 36.6 | L18: 38.4 | M18: 40.3 | N18: 41.2 | O18: 42.8 | P18: 46.8 | Q18: 48.4 | R18: 47.3 | S18: 46.1 | T18: 40.5 | U18: 42.4 | V18: 45.1 | W18: 48 | X18: 52.3 | Y18: 55.5 | Z18: 58.1 | AA18: 46 | AB18: 49 | AC18: 52 | AD18: 0.01 | AE18: 1200 | AF18: 18.6 | AG18: 12 | AH18: -7.5 | AI18: 250 | AJ18: 267.5254987 | AK18: 0.0078125 | AL18: 0.015625 | AM18: 0.03125 | AN18: 0.0625 | AO18: 0.125 | AP18: 0.25 | AQ18: 0.5 | AR18: 1 | AS18: 1 | AT18: 0.5 | AU18: 0.25 | AV18: 0.125 | AW18: 0.0625 | AX18: 0.03125 | AY18: 0.015625 | AZ18: 0.0078125 | BA18: 0.00390625 | BB18: 0.001953125 | BC18: 0.0009765625 | BD18: 0.00048828125 | BE18: 0.000244140625 | BF18: 4.050497776 | BG18: 2.2 | BH18: -1.4 | BI18: -5 | BJ18: -2.4 | BK18: 0.7 | BL18: -4.4 | BM18: -7.5 | BN18: -7 | BO18: -1 | BP18: 2.7 | BQ18: 8.2 | BR18: 11.8 | BS18: 14.5 | BT18: 18.4 | BU18: 18.8 | BV18: 18 | BW18: 16.8 | BX18: 15.2 | BY18: 15.04467133 | BZ18: 16.01299727 | CA18: 3
A19: 38490318 | B19: 22 | C19: 384900301 | D19: 67 | F19: 29.71803882 | G19: 28.2 | H19: 37.9 | I19: 40.9 | J19: 42.4 | K19: 36.6 | L19: 38.4 | M19: 40.3 | N19: 41.2 | O19: 42.8 | P19: 46.8 | Q19: 48.4 | R19: 47.3 | S19: 46.1 | T19: 40.5 | U19: 42.4 | V19: 45.1 | W19: 48 | X19: 52.3 | Y19: 55.5 | Z19: 58.1 | AA19: 46 | AB19: 49 | AC19: 52 | AD19: 0.01 | AE19: 1200 | AF19: 18.6 | AG19: 10 | AH19: -7.4 | AI19: 250 | AJ19: 267.5254987 | AK19: 0.0078125 | AL19: 0.015625 | AM19: 0.03125 | AN19: 0.0625 | AO19: 0.125 | AP19: 0.25 | AQ19: 0.5 | AR19: 1 | AS19: 1 | AT19: 0.5 | AU19: 0.25 | AV19: 0.125 | AW19: 0.0625 | AX19: 0.03125 | AY19: 0.015625 | AZ19: 0.0078125 | BA19: 0.00390625 | BB19: 0.001953125 | BC19: 0.0009765625 | BD19: 0.00048828125 | BE19: 0.000244140625 | BF19: 3.968156357 | BG19: 1.3 | BH19: -2 | BI19: -5.5 | BJ19: -2.6 | BK19: 0.6 | BL19: -4.3 | BM19: -7.4 | BN19: -6.4 | BO19: 0.1 | BP19: 4 | BQ19: 9 | BR19: 12.5 | BS19: 15.3 | BT19: 18.7 | BU19: 19.4 | BV19: 18.9 | BW19: 17.6 | BX19: 16.5 | BY19: 16.26653477 | BZ19: 16.72743368 | CA19: 3
A20: 38490319 | B20: 23 | C20: 384900301 | D20: 67 | F20: 29.71803882 | G20: 28.2 | H20: 37.9 | I20: 40.9 | J20: 42.4 | K20: 36.6 | L20: 38.4 | M20: 40.3 | N20: 41.2 | O20: 42.8 | P20: 46.8 | Q20: 48.4 | R20: 47.3 | S20: 46.1 | T20: 40.5 | U20: 42.4 | V20: 45.1 | W20: 48 | X20: 52.3 | Y20: 55.5 | Z20: 58.1 | AA20: 46 | AB20: 49 | AC20: 52 | AD20: 0.01 | AE20: 1200 | AF20: 18.6 | AG20: 10 | AH20: -7.2 | AI20: 250 | AJ20: 267.5254987 | AK20: 0.0078125 | AL20: 0.015625 | AM20: 0.03125 | AN20: 0.0625 | AO20: 0.125 | AP20: 0.25 | AQ20: 0.5 | AR20: 1 | AS20: 1 | AT20: 0.5 | AU20: 0.25 | AV20: 0.125 | AW20: 0.0625 | AX20: 0.03125 | AY20: 0.015625 | AZ20: 0.0078125 | BA20: 0.00390625 | BB20: 0.001953125 | BC20: 0.0009765625 | BD20: 0.00048828125 | BE20: 0.000244140625 | BF20: 2.798738566 | BG20: 1.1 | BH20: -3.7 | BI20: -8.4 | BJ20: -2.6 | BK20: 0.5 | BL20: -4.5 | BM20: -7.2 | BN20: -6.7 | BO20: 0.4 | BP20: 3.9 | BQ20: 8.7 | BR20: 12.3 | BS20: 14.9 | BT20: 18.5 | BU20: 19.3 | BV20: 18.7 | BW20: 17.2 | BX20: 15.9 | BY20: 15.96524162 | BZ20: 15.7781354 | CA20: 3
A21: 38490320 | B21: 24 | C21: 384900301 | D21: 67 | F21: 29.71803882 | G21: 28.2 | H21: 37.9 | I21: 40.9 | J21: 42.4 | K21: 36.6 | L21: 38.4 | M21: 40.3 | N21: 41.2 | O21: 42.8 | P21: 46.8 | Q21: 48.4 | R21: 47.3 | S21: 46.1 | T21: 40.5 | U21: 42.4 | V21: 45.1 | W21: 48 | X21: 52.3 | Y21: 55.5 | Z21: 58.1 | AA21: 46 | AB21: 50 | AC21: 52 | AD21: 0.01 | AE21: 1200 | AF21: 18.6 | AG21: 6 | AH21: -7.8 | AI21: 250 | AJ21: 267.5254987 | AK21: 0.0078125 | AL21: 0.015625 | AM21: 0.03125 | AN21: 0.0625 | AO21: 0.125 | AP21: 0.25 | AQ21: 0.5 | AR21: 1 | AS21: 1 | AT21: 0.5 | AU21: 0.25 | AV21: 0.125 | AW21: 0.0625 | AX21: 0.03125 | AY21: 0.015625 | AZ21: 0.0078125 | BA21: 0.00390625 | BB21: 0.001953125 | BC21: 0.0009765625 | BD21: 0.00048828125 | BE21: 0.000244140625 | BF21: 3.303296625 | BG21: 1.1 | BH21: -3.3 | BI21: -5.1 | BJ21: -2.8 | BK21: 0.9 | BL21: -5.4 | BM21: -7.8 | BN21: -2.7 | BO21: 1.5 | BP21: 4.2 | BQ21: 9.4 | BR21: 13.2 | BS21: 16 | BT21: 19.5 | BU21: 20.5 | BV21: 20.6 | BW21: 19.5 | BX21: 18.49757376 | BY21: 18.62329457 | BZ21: 17.86697839 | CA21: 4
A22: 38490321 | B22: 25 | C22: 384900301 | D22: 67 | F22: 29.71803882 | G22: 28.2 | H22: 37.9 | I22: 40.9 | J22: 42.4 | K22: 36.6 | L22: 38.4 | M22: 40.3 | N22: 41.2 | O22: 42.8 | P22: 46.8 | Q22: 48.4 | R22: 47.3 | S22: 46.1 | T22: 40.5 | U22: 42.4 | V22: 45.1 | W22: 48 | X22: 52.3 | Y22: 55.5 | Z22: 58.1 | AA22: 46 | AB22: 50 | AC22: 52 | AD22: 0.01 | AE22: 1200 | AF22: 18.6 | AG22: 6 | AH22: -8.5 | AI22: 250 | AJ22: 267.5254987 | AK22: 0.0078125 | AL22: 0.015625 | AM22: 0.03125 | AN22: 0.0625 | AO22: 0.125 | AP22: 0.25 | AQ22: 0.5 | AR22: 1 | AS22: 1 | AT22: 0.5 | AU22: 0.25 | AV22: 0.125 | AW22: 0.0625 | AX22: 0.03125 | AY22: 0.015625 | AZ22: 0.0078125 | BA22: 0.00390625 | BB22: 0.001953125 | BC22: 0.0009765625 | BD22: 0.00048828125 | BE22: 0.000244140625 | BF22: 2.679154506 | BG22: 0.5 | BH22: -3.8 | BI22: -5.8 | BJ22: -1.9 | BK22: 0.4 | BL22: -5.4 | BM22: -8.5 | BN22: -2.8 | BO22: 1.4 | BP22: 4 | BQ22: 9.2 | BR22: 12.9 | BS22: 15.7 | BT22: 19.2 | BU22: 20.4 | BV22: 20.2 | BW22: 18.7 | BX22: 17.4 | BY22: 17.76987174 | BZ22: 15.94808174 | CA22: 4
A23: 38490322 | B23: 26 | C23: 384900301 | D23: 67 | F23: 29.71803882 | G23: 28.2 | H23: 37.9 | I23: 40.9 | J23: 42.4 | K23: 36.6 | L23: 38.4 | M23: 40.3 | N23: 41.2 | O23: 42.8 | P23: 46.8 | Q23: 48.4 | R23: 47.3 | S23: 46.1 | T23: 40.5 | U23: 42.4 | V23: 45.1 | W23: 48 | X23: 52.3 | Y23: 55.5 | Z23: 58.1 | AA23: 46 | AB23: 51 | AC23: 52 | AD23: 0.01 | AE23: 1200 | AF23: 18.6 | AG23: 0 | AH23: -5.7 | AI23: 250 | AJ23: 267.5254987 | AK23: 0.0078125 | AL23: 0.015625 | AM23: 0.03125 | AN23: 0.0625 | AO23: 0.125 | AP23: 0.25 | AQ23: 0.5 | AR23: 1 | AS23: 1 | AT23: 0.5 | AU23: 0.25 | AV23: 0.125 | AW23: 0.0625 | AX23: 0.03125 | AY23: 0.015625 | AZ23: 0.0078125 | BA23: 0.00390625 | BB23: 0.001953125 | BC23: 0.0009765625 | BD23: 0.00048828125 | BE23: 0.000244140625 | BF23: 2.685681454 | BG23: -0.1 | BH23: -2 | BI23: -4.1 | BJ23: -2 | BK23: 0.1 | BL23: -4.3 | BM23: -5.7 | BN23: -1.2 | BO23: 4.6 | BP23: 6.4 | BQ23: 11.7 | BR23: 15.6 | BS23: 17.8 | BT23: 20.8 | BU23: 21.8 | BV23: 22.70881871 | BW23: 21.94908596 | BX23: 21.25798492 | BY23: 21.32418339 | BZ23: 18.0227346 | CA23: 5
A24: 38490323 | B24: 27 | C24: 384900301 | D24: 67 | F24: 29.71803882 | G24: 28.2 | H24: 37.9 | I24: 40.9 | J24: 42.4 | K24: 36.6 | L24: 38.4 | M24: 40.3 | N24: 41.2 | O24: 42.8 | P24: 46.8 | Q24: 48.4 | R24: 47.3 | S24: 46.1 | T24: 40.5 | U24: 42.4 | V24: 45.1 | W24: 48 | X24: 52.3 | Y24: 55.5 | Z24: 58.1 | AA24: 46 | AB24: 51 | AC24: 52 | AD24: 0.01 | AE24: 1200 | AF24: 18.6 | AG24: 0 | AH24: -5.8 | AI24: 250 | AJ24: 267.5254987 | AK24: 0.0078125 | AL24: 0.015625 | AM24: 0.03125 | AN24: 0.0625 | AO24: 0.125 | AP24: 0.25 | AQ24: 0.5 | AR24: 1 | AS24: 1 | AT24: 0.5 | AU24: 0.25 | AV24: 0.125 | AW24: 0.0625 | AX24: 0.03125 | AY24: 0.015625 | AZ24: 0.0078125 | BA24: 0.00390625 | BB24: 0.001953125 | BC24: 0.0009765625 | BD24: 0.00048828125 | BE24: 0.000244140625 | BF24: 2.384011824 | BG24: -0.4 | BH24: -2.4 | BI24: -4.7 | BJ24: -1.9 | BK24: 0.2 | BL24: -5.6 | BM24: -5.8 | BN24: -1 | BO24: 4.5 | BP24: 6.8 | BQ24: 11.9 | BR24: 15.7 | BS24: 18.1 | BT24: 20.6 | BU24: 21.6 | BV24: 22.3 | BW24: 20.9 | BX24: 20.24071962 | BY24: 21.76440922 | BZ24: 20.06230308 | CA24: 5
A25: 38490324 | B25: 28 | C25: 384900301 | D25: 67 | F25: 29.71803882 | G25: 28.2 | H25: 37.9 | I25: 40.9 | J25: 42.4 | K25: 36.6 | L25: 38.4 | M25: 40.3 | N25: 41.2 | O25: 42.8 | P25: 46.8 | Q25: 48.4 | R25: 47.3 | S25: 46.1 | T25: 40.5 | U25: 42.4 | V25: 45.1 | W25: 48 | X25: 52.3 | Y25: 55.5 | Z25: 58.1 | AA25: 46 | AB25: 52 | AC25: 52 | AD25: 0.01 | AE25: 1200 | AF25: 18.6 | AG25: 0 | AH25: -5.5 | AI25: 250 | AJ25: 267.5254987 | AK25: 0.0078125 | AL25: 0.015625 | AM25: 0.03125 | AN25: 0.0625 | AO25: 0.125 | AP25: 0.25 | AQ25: 0.5 | AR25: 1 | AS25: 1 | AT25: 0.5 | AU25: 0.25 | AV25: 0.125 | AW25: 0.0625 | AX25: 0.03125 | AY25: 0.015625 | AZ25: 0.0078125 | BA25: 0.00390625 | BB25: 0.001953125 | BC25: 0.0009765625 | BD25: 0.00048828125 | BE25: 0.000244140625 | BF25: 2.893858073 | BG25: 0.6 | BH25: -1 | BI25: -2.7 | BJ25: -2.6 | BK25: 0.7 | BL25: -4.3 | BM25: -5.5 | BN25: -0.6 | BO25: 4.3 | BP25: 7 | BQ25: 12.2 | BR25: 16 | BS25: 18.2 | BT25: 20.9 | BU25: 21.9 | BV25: 22.6 | BW25: 20.8 | BX25: 19.88362516 | BY25: 21.66294564 | BZ25: 20.21359875 | CA25: 6
A26: 38490325 | B26: 29 | C26: 384900301 | D26: 67 | F26: 29.71803882 | G26: 28.2 | H26: 37.9 | I26: 40.9 | J26: 42.4 | K26: 36.6 | L26: 38.4 | M26: 40.3 | N26: 41.2 | O26: 42.8 | P26: 46.8 | Q26: 48.4 | R26: 47.3 | S26: 46.1 | T26: 40.5 | U26: 42.4 | V26: 45.1 | W26: 48 | X26: 52.3 | Y26: 55.5 | Z26: 58.1 | AA26: 46 | AB26: 52 | AC26: 9.7 | AD26: 0.004 | AE26: 1200 | AF26: 5.5 | AG26: 0 | AH26: -0.3 | AI26: 200 | AJ26: 212.4831544 | AK26: 0.015625 | AL26: 0.03125 | AM26: 0.0625 | AN26: 0.125 | AO26: 0.25 | AP26: 0.5 | AQ26: 1 | AR26: 1 | AS26: 0.5 | AT26: 0.25 | AU26: 0.125 | AV26: 0.0625 | AW26: 0.03125 | AX26: 0.015625 | AY26: 0.0078125 | AZ26: 0.00390625 | BA26: 0.001953125 | BB26: 0.0009765625 | BC26: 0.00048828125 | BD26: 0.000244140625 | BE26: 0.0001220703125 | BF26: 0.08196118398 | BG26: 0.2 | BH26: -4.1 | BI26: -8 | BJ26: -12 | BK26: -4 | BL26: -0.3 | BM26: 1.8 | BN26: 3.1 | BO26: 3.7 | BP26: 4.7 | BQ26: 7.1 | BR26: 9.1 | BS26: 11.4 | BT26: 17.3 | BU26: 20.5 | BV26: 23.2 | BW26: 25 | BX26: 27.04631456 | BY26: 26.67362491 | BZ26: 19.73489911 | CA26: 6
A27: 38490327 | B27: 30 | C27: 384900301 | D27: 67 | F27: 29.71803882 | G27: 28.2 | H27: 37.9 | I27: 40.9 | J27: 42.4 | K27: 36.6 | L27: 38.4 | M27: 40.3 | N27: 41.2 | O27: 42.8 | P27: 46.8 | Q27: 48.4 | R27: 47.3 | S27: 46.1 | T27: 40.5 | U27: 42.4 | V27: 45.1 | W27: 48 | X27: 52.3 | Y27: 55.5 | Z27: 58.1 | AA27: 46 | AB27: 51 | AC27: 9.7 | AD27: 0.004 | AE27: 1200 | AF27: 5.5 | AG27: 10 | AH27: -2.9 | AI27: 200 | AJ27: 212.4831544 | AK27: 0.015625 | AL27: 0.03125 | AM27: 0.0625 | AN27: 0.125 | AO27: 0.25 | AP27: 0.5 | AQ27: 1 | AR27: 1 | AS27: 0.5 | AT27: 0.25 | AU27: 0.125 | AV27: 0.0625 | AW27: 0.03125 | AX27: 0.015625 | AY27: 0.0078125 | AZ27: 0.00390625 | BA27: 0.001953125 | BB27: 0.0009765625 | BC27: 0.00048828125 | BD27: 0.000244140625 | BE27: 0.0001220703125 | BF27: 0.6455175225 | BG27: -0.6 | BH27: -4.9 | BI27: -7.3 | BJ27: -10.4 | BK27: -6.1 | BL27: -2.9 | BM27: 0.1 | BN27: 2.5 | BO27: 3.1 | BP27: 5.2 | BQ27: 6.4 | BR27: 7.1 | BS27: 8.8 | BT27: 16.2 | BU27: 19.2 | BV27: 21.9 | BW27: 23.69094785 | BX27: 26.25020306 | BY27: 27.06564147 | BZ27: 20.51423071 | CA27: 5
A28: 38490328 | B28: 31 | C28: 384900301 | D28: 67 | F28: 29.71803882 | G28: 28.2 | H28: 37.9 | I28: 40.9 | J28: 42.4 | K28: 36.6 | L28: 38.4 | M28: 40.3 | N28: 41.2 | O28: 42.8 | P28: 46.8 | Q28: 48.4 | R28: 47.3 | S28: 46.1 | T28: 40.5 | U28: 42.4 | V28: 45.1 | W28: 48 | X28: 52.3 | Y28: 55.5 | Z28: 58.1 | AA28: 46 | AB28: 54 | AC28: 9.7 | AD28: 0.008 | AE28: 1200 | AF28: 16 | AG28: 10 | AH28: 0.7 | AI28: 200 | AJ28: 124.579292 | AK28: 0.125 | AL28: 0.25 | AM28: 0.5 | AN28: 1 | AO28: 1 | AP28: 0.5 | AQ28: 0.25 | AR28: 0.125 | AS28: 0.0625 | AT28: 0.03125 | AU28: 0.015625 | AV28: 0.0078125 | AW28: 0.00390625 | AX28: 0.001953125 | AY28: 0.001953125 | AZ28: 0.00048828125 | BA28: 0.000244140625 | BB28: 0.000244140625 | BC28: 0.0001220703125 | BD28: 3.051757812e-05 | BE28: 3.051757812e-05 | BF28: -0.2606046726 | BG28: -1.4 | BH28: -2.9 | BI28: -5 | BJ28: -11.7 | BK28: -3 | BL28: 0.7 | BM28: 1.5 | BN28: 6 | BO28: 10.1 | BP28: 10.3 | BQ28: 11.4 | BR28: 12.8 | BS28: 14.8 | BT28: 22.4 | BU28: 25.1 | BV28: 26.84412152 | BW28: 27.96002994 | BX28: 28.07966377 | BY28: 24.49515215 | BZ28: 18.71809632 | CA28: 8
A29: 38490329 | B29: 32 | C29: 384900301 | D29: 67 | F29: 29.71803882 | G29: 28.2 | H29: 37.9 | I29: 40.9 | J29: 42.4 | K29: 36.6 | L29: 38.4 | M29: 40.3 | N29: 41.2 | O29: 42.8 | P29: 46.8 | Q29: 48.4 | R29: 47.3 | S29: 46.1 | T29: 40.5 | U29: 42.4 | V29: 45.1 | W29: 48 | X29: 52.3 | Y29: 55.5 | Z29: 58.1 | AA29: 46 | AB29: 58 | AC29: 9.7 | AD29: 0.008 | AE29: 1200 | AF29: 16 | AG29: 0 | AH29: 4.4 | AI29: 200 | AJ29: 124.579292 | AK29: 0.125 | AL29: 0.25 | AM29: 0.5 | AN29: 1 | AO29: 1 | AP29: 0.5 | AQ29: 0.25 | AR29: 0.125 | AS29: 0.0625 | AT29: 0.03125 | AU29: 0.015625 | AV29: 0.0078125 | AW29: 0.00390625 | AX29: 0.001953125 | AY29: 0.001953125 | AZ29: 0.00048828125 | BA29: 0.000244140625 | BB29: 0.000244140625 | BC29: 0.0001220703125 | BD29: 3.051757812e-05 | BE29: 3.051757812e-05 | BF29: -2.318038816 | BG29: -2.4 | BH29: -8.3 | BI29: -5.5 | BJ29: -3.3 | BK29: 3.8 | BL29: 4.4 | BM29: 5.9 | BN29: 6.3 | BO29: 9.9 | BP29: 11.3 | BQ29: 13 | BR29: 15.3 | BS29: 18.2 | BT29: 24.9 | BU29: 27.7 | BV29: 29.69537141 | BW29: 30.45470613 | BX29: 30.72743173 | BY29: 27.42872971 | BZ29: 21.70373111 | CA29: 12
A30: 38490330 | B30: 33 | C30: 384900301 | D30: 67 | F30: 29.71803882 | G30: 28.2 | H30: 37.9 | I30: 40.9 | J30: 42.4 | K30: 36.6 | L30: 38.4 | M30: 40.3 | N30: 41.2 | O30: 42.8 | P30: 46.8 | Q30: 48.4 | R30: 47.3 | S30: 46.1 | T30: 40.5 | U30: 42.4 | V30: 45.1 | W30: 48 | X30: 52.3 | Y30: 55.5 | Z30: 58.1 | AA30: 46 | AB30: 50 | AC30: 8 | AD30: 0.004 | AE30: 1200 | AF30: 4.2 | AG30: 0 | AH30: -8.3 | AI30: 200 | AJ30: 220.820979 | AK30: 0.015625 | AL30: 0.03125 | AM30: 0.0625 | AN30: 0.125 | AO30: 0.25 | AP30: 0.5 | AQ30: 1 | AR30: 1 | AS30: 0.5 | AT30: 0.25 | AU30: 0.125 | AV30: 0.0625 | AW30: 0.03125 | AX30: 0.015625 | AY30: 0.0078125 | AZ30: 0.00390625 | BA30: 0.001953125 | BB30: 0.0009765625 | BC30: 0.00048828125 | BD30: 0.000244140625 | BE30: 0.0001220703125 | BF30: -0.6536520975 | BG30: -1.6 | BH30: -1.6 | BI30: -2.9 | BJ30: -5.6 | BK30: -5.6 | BL30: -8.3 | BM30: -4.7 | BN30: 1.3 | BO30: 5.8 | BP30: 6.3 | BQ30: 5.6 | BR30: 4.9 | BS30: 8.8 | BT30: 16 | BU30: 17.9 | BV30: 19.1 | BW30: 20.6 | BX30: 22.4 | BY30: 22.95885398 | BZ30: 18.48734407 | CA30: 4
A31: 38490331 | B31: 34 | C31: 384900301 | D31: 67 | F31: 29.71803882 | G31: 28.2 | H31: 37.9 | I31: 40.9 | J31: 42.4 | K31: 36.6 | L31: 38.4 | M31: 40.3 | N31: 41.2 | O31: 42.8 | P31: 46.8 | Q31: 48.4 | R31: 47.3 | S31: 46.1 | T31: 40.5 | U31: 42.4 | V31: 45.1 | W31: 48 | X31: 52.3 | Y31: 55.5 | Z31: 58.1 | AA31: 46 | AB31: 50 | AC31: 8 | AD31: 0.004 | AE31: 1200 | AF31: 4.2 | AG31: 6 | AH31: -9.7 | AI31: 200 | AJ31: 220.820979 | AK31: 0.015625 | AL31: 0.03125 | AM31: 0.0625 | AN31: 0.125 | AO31: 0.25 | AP31: 0.5 | AQ31: 1 | AR31: 1 | AS31: 0.5 | AT31: 0.25 | AU31: 0.125 | AV31: 0.0625 | AW31: 0.03125 | AX31: 0.015625 | AY31: 0.0078125 | AZ31: 0.00390625 | BA31: 0.001953125 | BB31: 0.0009765625 | BC31: 0.00048828125 | BD31: 0.000244140625 | BE31: 0.0001220703125 | BF31: 1.639118058 | BG31: -0.1 | BH31: -2.7 | BI31: -4.7 | BJ31: -4.2 | BK31: -4.8 | BL31: -9.7 | BM31: -5.2 | BN31: -0.5 | BO31: 4.2 | BP31: 4.3 | BQ31: 5 | BR31: 4.8 | BS31: 9 | BT31: 16 | BU31: 17.2 | BV31: 18.5 | BW31: 19.495885 | BX31: 21.56772233 | BY31: 21.84388694 | BZ31: 16.75155103 | CA31: 4
A32: 38490334 | B32: 37 | C32: 384900301 | D32: 67 | F32: 29.71803882 | G32: 28.2 | H32: 37.9 | I32: 40.9 | J32: 42.4 | K32: 36.6 | L32: 38.4 | M32: 40.3 | N32: 41.2 | O32: 42.8 | P32: 46.8 | Q32: 48.4 | R32: 47.3 | S32: 46.1 | T32: 40.5 | U32: 42.4 | V32: 45.1 | W32: 48 | X32: 52.3 | Y32: 55.5 | Z32: 58.1 | AA32: 46 | AB32: 47 | AC32: 19 | AD32: 0.004 | AE32: 1200 | AF32: 5.5 | AG32: 0 | AH32: -10.3 | AI32: 250 | AJ32: 297.3825207 | AK32: 0.0078125 | AL32: 0.015625 | AM32: 0.03125 | AN32: 0.0625 | AO32: 0.125 | AP32: 0.25 | AQ32: 0.5 | AR32: 1 | AS32: 1 | AT32: 0.5 | AU32: 0.25 | AV32: 0.125 | AW32: 0.0625 | AX32: 0.03125 | AY32: 0.015625 | AZ32: 0.0078125 | BA32: 0.00390625 | BB32: 0.001953125 | BC32: 0.0009765625 | BD32: 0.00048828125 | BE32: 0.000244140625 | BF32: 0.881961184 | BG32: -1.1 | BH32: -1.6 | BI32: -4.9 | BJ32: -4.4 | BK32: -0.6 | BL32: -5.8 | BM32: -10.3 | BN32: -8.6 | BO32: -2.6 | BP32: 2.7 | BQ32: 7 | BR32: 7.9 | BS32: 5.3 | BT32: 12.5 | BU32: 16.5 | BV32: 17.9 | BW32: 18.2 | BX32: 21.2 | BY32: 22.63050519 | BZ32: 24.60292283 | CA32: 1
A33: 38490335 | B33: 38 | C33: 384900301 | D33: 67 | F33: 29.71803882 | G33: 28.2 | H33: 37.9 | I33: 40.9 | J33: 42.4 | K33: 36.6 | L33: 38.4 | M33: 40.3 | N33: 41.2 | O33: 42.8 | P33: 46.8 | Q33: 48.4 | R33: 47.3 | S33: 46.1 | T33: 40.5 | U33: 42.4 | V33: 45.1 | W33: 48 | X33: 52.3 | Y33: 55.5 | Z33: 58.1 | AA33: 46 | AB33: 46 | AC33: 19 | AD33: 0.004 | AE33: 1200 | AF33: 5.5 | AG33: 6 | AH33: -10.5 | AI33: 250 | AJ33: 297.3825207 | AK33: 0.0078125 | AL33: 0.015625 | AM33: 0.03125 | AN33: 0.0625 | AO33: 0.125 | AP33: 0.25 | AQ33: 0.5 | AR33: 1 | AS33: 1 | AT33: 0.5 | AU33: 0.25 | AV33: 0.125 | AW33: 0.0625 | AX33: 0.03125 | AY33: 0.015625 | AZ33: 0.0078125 | BA33: 0.00390625 | BB33: 0.001953125 | BC33: 0.0009765625 | BD33: 0.00048828125 | BE33: 0.000244140625 | BF33: 0.1423990087 | BG33: -0.4 | BH33: -3.1 | BI33: -6.7 | BJ33: -5 | BK33: -0.8 | BL33: -6.8 | BM33: -10.5 | BN33: -10 | BO33: -5.4 | BP33: -0.5 | BQ33: 4 | BR33: 6.1 | BS33: 4.8 | BT33: 12.1 | BU33: 15.6 | BV33: 16.9 | BW33: 17.8 | BX33: 19.9 | BY33: 21.28253564 | BZ33: 19.46617048 | CA33: 0
A34: 38490340 | B34: 43 | C34: 384900301 | D34: 67 | F34: 29.71803882 | G34: 28.2 | H34: 37.9 | I34: 40.9 | J34: 42.4 | K34: 36.6 | L34: 38.4 | M34: 40.3 | N34: 41.2 | O34: 42.8 | P34: 46.8 | Q34: 48.4 | R34: 47.3 | S34: 46.1 | T34: 40.5 | U34: 42.4 | V34: 45.1 | W34: 48 | X34: 52.3 | Y34: 55.5 | Z34: 58.1 | AA34: 46 | AB34: 45 | AC34: 61 | AD34: 0.005 | AE34: 0 | AF34: 4.7 | AG34: 0 | AH34: -12 | AI34: 500 | AJ34: 576.4159255 | AK34: 0.0009765625 | AL34: 0.001953125 | AM34: 0.00390625 | AN34: 0.0078125 | AO34: 0.015625 | AP34: 0.03125 | AQ34: 0.0625 | AR34: 0.125 | AS34: 0.25 | AT34: 0.5 | AU34: 1 | AV34: 1 | AW34: 0.5 | AX34: 0.25 | AY34: 0.125 | AZ34: 0.0625 | BA34: 0.03125 | BB34: 0.015625 | BC34: 0.0078125 | BD34: 0.00390625 | BE34: 0.001953125 | BF34: 1.32685096 | BG34: -0.1 | BH34: -2.9 | BI34: -1.4 | BJ34: -0.4 | BK34: 2.5 | BL34: -3.3 | BM34: -4.3 | BN34: -5.6 | BO34: -8 | BP34: -12 | BQ34: -6.9 | BR34: -0.8 | BS34: 4.9 | BT34: 13 | BU34: 12.8 | BV34: 10.4 | BW34: 10.5 | BX34: 10.9 | BY34: 9.9 | BZ34: 12.08157349 | CA34: -1
A35: 38490341 | B35: 44 | C35: 384900301 | D35: 67 | F35: 29.71803882 | G35: 28.2 | H35: 37.9 | I35: 40.9 | J35: 42.4 | K35: 36.6 | L35: 38.4 | M35: 40.3 | N35: 41.2 | O35: 42.8 | P35: 46.8 | Q35: 48.4 | R35: 47.3 | S35: 46.1 | T35: 40.5 | U35: 42.4 | V35: 45.1 | W35: 48 | X35: 52.3 | Y35: 55.5 | Z35: 58.1 | AA35: 46 | AB35: 45 | AC35: 61 | AD35: 0.005 | AE35: 0 | AF35: 4.7 | AG35: 6 | AH35: -11.2 | AI35: 500 | AJ35: 576.4159255 | AK35: 0.0009765625 | AL35: 0.001953125 | AM35: 0.00390625 | AN35: 0.0078125 | AO35: 0.015625 | AP35: 0.03125 | AQ35: 0.0625 | AR35: 0.125 | AS35: 0.25 | AT35: 0.5 | AU35: 1 | AV35: 1 | AW35: 0.5 | AX35: 0.25 | AY35: 0.125 | AZ35: 0.0625 | BA35: 0.03125 | BB35: 0.015625 | BC35: 0.0078125 | BD35: 0.00390625 | BE35: 0.001953125 | BF35: 1.065061549 | BG35: -0.8 | BH35: -1.6 | BI35: -2.7 | BJ35: -1.4 | BK35: 3.7 | BL35: -3.5 | BM35: -4.5 | BN35: -5.5 | BO35: -7.7 | BP35: -11.2 | BQ35: -6.5 | BR35: -0.9 | BS35: 4.6 | BT35: 13 | BU35: 13.1 | BV35: 10.9 | BW35: 11.2 | BX35: 11.8 | BY35: 11.1 | BZ35: 12.59523542 | CA35: -1
A36: 384900410 | B36: 45 | C36: 38490029 | D36: 6 | F36: 45.9 | G36: 37.6 | H36: 39 | I36: 50.2 | J36: 47.1 | K36: 49.7 | L36: 48.4 | M36: 52.2 | N36: 54.8 | O36: 58.4 | P36: 58.7 | Q36: 62.8 | R36: 62.6 | S36: 64.8 | T36: 66.2 | U36: 69.2 | V36: 70.2 | W36: 71.2 | X36: 73.5 | Y36: 77 | Z36: 79.1 | AA36: 63 | AB36: 58 | AC36: 52 | AD36: 0.005 | AE36: 0 | AF36: 5.4 | AG36: 0 | AH36: -12 | AI36: 400 | AJ36: 496.5063127 | AK36: 0.001953125 | AL36: 0.00390625 | AM36: 0.0078125 | AN36: 0.015625 | AO36: 0.03125 | AP36: 0.0625 | AQ36: 0.125 | AR36: 0.25 | AS36: 0.5 | AT36: 1 | AU36: 1 | AV36: 0.5 | AW36: 0.25 | AX36: 0.125 | AY36: 0.125 | AZ36: 0.03125 | BA36: 0.015625 | BB36: 0.015625 | BC36: 0.0078125 | BD36: 0.001953125 | BE36: 0.001953125 | BF36: -10.0259221 | BG36: -7.7 | BH36: 4.4 | BI36: -2.5 | BJ36: -1.6 | BK36: -3.7 | BL36: -2.3 | BM36: -4.4 | BN36: -6.8 | BO36: -12 | BP36: -8.2 | BQ36: -5.5 | BR36: 3.5 | BS36: 5.9 | BT36: 7 | BU36: 5.8 | BV36: 6.4 | BW36: 7.7 | BX36: 8.139147683 | BY36: 8.375659648 | BZ36: 9.94287072 | CA36: -5
A37: 384900411 | B37: 46 | C37: 38490029 | D37: 6 | F37: 45.9 | G37: 37.6 | H37: 39 | I37: 50.2 | J37: 47.1 | K37: 49.7 | L37: 48.4 | M37: 52.2 | N37: 54.8 | O37: 58.4 | P37: 58.7 | Q37: 62.8 | R37: 62.6 | S37: 64.8 | T37: 66.2 | U37: 69.2 | V37: 70.2 | W37: 71.2 | X37: 73.5 | Y37: 77 | Z37: 79.1 | AA37: 63 | AB37: 58 | AC37: 52 | AD37: 0.005 | AE37: 0 | AF37: 5.4 | AG37: 6 | AH37: -11 | AI37: 400 | AJ37: 496.5063127 | AK37: 0.001953125 | AL37: 0.00390625 | AM37: 0.0078125 | AN37: 0.015625 | AO37: 0.03125 | AP37: 0.0625 | AQ37: 0.125 | AR37: 0.25 | AS37: 0.5 | AT37: 1 | AU37: 1 | AV37: 0.5 | AW37: 0.25 | AX37: 0.125 | AY37: 0.125 | AZ37: 0.03125 | BA37: 0.015625 | BB37: 0.015625 | BC37: 0.0078125 | BD37: 0.001953125 | BE37: 0.001953125 | BF37: -8.111176189 | BG37: -7 | BH37: 3.8 | BI37: -1.4 | BJ37: -1.6 | BK37: -3.5 | BL37: -2.1 | BM37: -5.7 | BN37: -6.8 | BO37: -11 | BP37: -8.1 | BQ37: -5.5 | BR37: 2 | BS37: 4.4 | BT37: 7.8 | BU37: 7.2 | BV37: 7.9 | BW37: 8.9 | BX37: 9.16470974 | BY37: 9.20890772 | BZ37: 10.00543685 | CA37: -5
A38: 384900412 | B38: 47 | C38: 38490029 | D38: 6 | F38: 45.9 | G38: 37.6 | H38: 39 | I38: 50.2 | J38: 47.1 | K38: 49.7 | L38: 48.4 | M38: 52.2 | N38: 54.8 | O38: 58.4 | P38: 58.7 | Q38: 62.8 | R38: 62.6 | S38: 64.8 | T38: 66.2 | U38: 69.2 | V38: 70.2 | W38: 71.2 | X38: 73.5 | Y38: 77 | Z38: 79.1 | AA38: 63 | AB38: 58 | AC38: 52 | AD38: 0.005 | AE38: 0 | AF38: 5.4 | AG38: 10 | AH38: -9.5 | AI38: 400 | AJ38: 496.5063127 | AK38: 0.001953125 | AL38: 0.00390625 | AM38: 0.0078125 | AN38: 0.015625 | AO38: 0.03125 | AP38: 0.0625 | AQ38: 0.125 | AR38: 0.25 | AS38: 0.5 | AT38: 1 | AU38: 1 | AV38: 0.5 | AW38: 0.25 | AX38: 0.125 | AY38: 0.125 | AZ38: 0.03125 | BA38: 0.015625 | BB38: 0.015625 | BC38: 0.0078125 | BD38: 0.001953125 | BE38: 0.001953125 | BF38: -8.1 | BG38: -7.5 | BH38: 4.4 | BI38: -1.5 | BJ38: -1.7 | BK38: -6.1 | BL38: -2.6 | BM38: -6.1 | BN38: -6.3 | BO38: -9.5 | BP38: -6.8 | BQ38: -5 | BR38: 2.9 | BS38: 5 | BT38: 7.7 | BU38: 7.2 | BV38: 7.9 | BW38: 9.2 | BX38: 9.352690652 | BY38: 9.502556432 | BZ38: 10.94544625 | CA38: -5
A39: 384900413 | B39: 48 | C39: 38490029 | D39: 6 | F39: 45.9 | G39: 37.6 | H39: 39 | I39: 50.2 | J39: 47.1 | K39: 49.7 | L39: 48.4 | M39: 52.2 | N39: 54.8 | O39: 58.4 | P39: 58.7 | Q39: 62.8 | R39: 62.6 | S39: 64.8 | T39: 66.2 | U39: 69.2 | V39: 70.2 | W39: 71.2 | X39: 73.5 | Y39: 77 | Z39: 79.1 | AA39: 63 | AB39: 58 | AC39: 52 | AD39: 0.005 | AE39: 0 | AF39: 5.4 | AG39: 12 | AH39: -10 | AI39: 400 | AJ39: 496.5063127 | AK39: 0.001953125 | AL39: 0.00390625 | AM39: 0.0078125 | AN39: 0.015625 | AO39: 0.03125 | AP39: 0.0625 | AQ39: 0.125 | AR39: 0.25 | AS39: 0.5 | AT39: 1 | AU39: 1 | AV39: 0.5 | AW39: 0.25 | AX39: 0.125 | AY39: 0.125 | AZ39: 0.03125 | BA39: 0.015625 | BB39: 0.015625 | BC39: 0.0078125 | BD39: 0.001953125 | BE39: 0.001953125 | BF39: -7.3 | BG39: -8.2 | BH39: 2.8 | BI39: -3.6 | BJ39: -2 | BK39: -4.5 | BL39: -1 | BM39: -4.8 | BN39: -7.7 | BO39: -10 | BP39: -7.4 | BQ39: -4.3 | BR39: 2.5 | BS39: 4.7 | BT39: 7.7 | BU39: 7.2 | BV39: 8.3 | BW39: 9 | BX39: 9.605052513 | BY39: 10.01056491 | BZ39: 11.31102424 | CA39: -5
A40: 384900414 | B40: 49 | C40: 38490029 | D40: 6 | F40: 45.9 | G40: 37.6 | H40: 39 | I40: 50.2 | J40: 47.1 | K40: 49.7 | L40: 48.4 | M40: 52.2 | N40: 54.8 | O40: 58.4 | P40: 58.7 | Q40: 62.8 | R40: 62.6 | S40: 64.8 | T40: 66.2 | U40: 69.2 | V40: 70.2 | W40: 71.2 | X40: 73.5 | Y40: 77 | Z40: 79.1 | AA40: 63 | AB40: 59 | AC40: 52 | AD40: 0.01 | AE40: 0 | AF40: 14.2 | AG40: 12 | AH40: -9.1 | AI40: 250 | AJ40: 306.1804678 | AK40: 0.0078125 | AL40: 0.015625 | AM40: 0.03125 | AN40: 0.0625 | AO40: 0.125 | AP40: 0.25 | AQ40: 0.5 | AR40: 1 | AS40: 1 | AT40: 0.5 | AU40: 0.25 | AV40: 0.125 | AW40: 0.0625 | AX40: 0.03125 | AY40: 0.015625 | AZ40: 0.0078125 | BA40: 0.00390625 | BB40: 0.001953125 | BC40: 0.0009765625 | BD40: 0.00048828125 | BE40: 0.000244140625 | BF40: -8 | BG40: -7.1 | BH40: 4.2 | BI40: -2.4 | BJ40: -4.4 | BK40: -7.3 | BL40: -4.8 | BM40: -9.1 | BN40: -8.9 | BO40: -1.3 | BP40: 5.9 | BQ40: 5.9 | BR40: 11.5 | BS40: 12.36501957 | BT40: 12.7 | BU40: 11.5 | BV40: 11 | BW40: 11.3 | BX40: 11.6 | BY40: 11.47651445 | BZ40: 11.12646863 | CA40: -4
A41: 384900415 | B41: 50 | C41: 38490029 | D41: 6 | F41: 45.9 | G41: 37.6 | H41: 39 | I41: 50.2 | J41: 47.1 | K41: 49.7 | L41: 48.4 | M41: 52.2 | N41: 54.8 | O41: 58.4 | P41: 58.7 | Q41: 62.8 | R41: 62.6 | S41: 64.8 | T41: 66.2 | U41: 69.2 | V41: 70.2 | W41: 71.2 | X41: 73.5 | Y41: 77 | Z41: 79.1 | AA41: 63 | AB41: 61 | AC41: 52 | AD41: 0.005 | AE41: 0 | AF41: 14.2 | AG41: 6 | AH41: -8.8 | AI41: 250 | AJ41: 306.1804678 | AK41: 0.0078125 | AL41: 0.015625 | AM41: 0.03125 | AN41: 0.0625 | AO41: 0.125 | AP41: 0.25 | AQ41: 0.5 | AR41: 1 | AS41: 1 | AT41: 0.5 | AU41: 0.25 | AV41: 0.125 | AW41: 0.0625 | AX41: 0.03125 | AY41: 0.015625 | AZ41: 0.0078125 | BA41: 0.00390625 | BB41: 0.001953125 | BC41: 0.0009765625 | BD41: 0.00048828125 | BE41: 0.000244140625 | BF41: -9.9 | BG41: -8.4 | BH41: 3.4 | BI41: -2.4 | BJ41: -2.5 | BK41: -7.3 | BL41: -8 | BM41: -8.8 | BN41: -0.5 | BO41: 1.1 | BP41: 6 | BQ41: 6.7 | BR41: 10.2 | BS41: 11.4 | BT41: 12.2 | BU41: 11.5 | BV41: 10.9 | BW41: 12 | BX41: 12.6 | BY41: 12.3487734 | BZ41: 12.91888103 | CA41: -2
A42: 384900416 | B42: 51 | C42: 38490029 | D42: 6 | F42: 45.9 | G42: 37.6 | H42: 39 | I42: 50.2 | J42: 47.1 | K42: 49.7 | L42: 48.4 | M42: 52.2 | N42: 54.8 | O42: 58.4 | P42: 58.7 | Q42: 62.8 | R42: 62.6 | S42: 64.8 | T42: 66.2 | U42: 69.2 | V42: 70.2 | W42: 71.2 | X42: 73.5 | Y42: 77 | Z42: 79.1 | AA42: 63 | AB42: 62 | AC42: 52 | AD42: 0.005 | AE42: 0 | AF42: 14.2 | AG42: 0 | AH42: -6.5 | AI42: 200 | AJ42: 306.1804678 | AK42: 0.0078125 | AL42: 0.015625 | AM42: 0.03125 | AN42: 0.0625 | AO42: 0.125 | AP42: 0.25 | AQ42: 0.5 | AR42: 1 | AS42: 1 | AT42: 0.5 | AU42: 0.25 | AV42: 0.125 | AW42: 0.0625 | AX42: 0.03125 | AY42: 0.015625 | AZ42: 0.0078125 | BA42: 0.00390625 | BB42: 0.001953125 | BC42: 0.0009765625 | BD42: 0.00048828125 | BE42: 0.000244140625 | BF42: -11.3 | BG42: -8.8 | BH42: 4.3 | BI42: -4.7 | BJ42: -5.5 | BK42: -9.6 | BL42: -6.5 | BM42: -4.8 | BN42: 2.2 | BO42: 4.1 | BP42: 7.5 | BQ42: 7.2 | BR42: 11.5 | BS42: 13.21398523 | BT42: 13.7 | BU42: 13 | BV42: 11.9 | BW42: 12.8 | BX42: 13.4 | BY42: 13.15981185 | BZ42: 14.06868461 | CA42: -1
A43: 384900419 | B43: 54 | C43: 38490029 | D43: 6 | F43: 45.9 | G43: 37.6 | H43: 39 | I43: 50.2 | J43: 47.1 | K43: 49.7 | L43: 48.4 | M43: 52.2 | N43: 54.8 | O43: 58.4 | P43: 58.7 | Q43: 62.8 | R43: 62.6 | S43: 64.8 | T43: 66.2 | U43: 69.2 | V43: 70.2 | W43: 71.2 | X43: 73.5 | Y43: 77 | Z43: 79.1 | AA43: 63 | AB43: 57 | AC43: 52 | AD43: 0.5 | AE43: 0 | AF43: 4.5 | AG43: 0 | AH43: -12.6 | AI43: 400 | AJ43: 543.8954148 | AK43: 0.0009765625 | AL43: 0.001953125 | AM43: 0.00390625 | AN43: 0.0078125 | AO43: 0.015625 | AP43: 0.03125 | AQ43: 0.0625 | AR43: 0.125 | AS43: 0.25 | AT43: 0.5 | AU43: 1 | AV43: 1 | AW43: 0.5 | AX43: 0.25 | AY43: 0.125 | AZ43: 0.0625 | BA43: 0.03125 | BB43: 0.015625 | BC43: 0.0078125 | BD43: 0.00390625 | BE43: 0.001953125 | BF43: -12 | BG43: -8.7 | BH43: 6.9 | BI43: -1.4 | BJ43: -1.5 | BK43: -4.3 | BL43: -3.8 | BM43: -5.7 | BN43: -9 | BO43: -12.6 | BP43: -6.5 | BQ43: -1.9 | BR43: 5.2 | BS43: 6.5 | BT43: 5.8 | BU43: 5 | BV43: 4.9 | BW43: 7.1 | BX43: 6.8 | BY43: 7.1 | BZ43: 8.438544843 | CA43: -6
A44: 384900420 | B44: 55 | C44: 38490029 | D44: 6 | F44: 45.9 | G44: 37.6 | H44: 39 | I44: 50.2 | J44: 47.1 | K44: 49.7 | L44: 48.4 | M44: 52.2 | N44: 54.8 | O44: 58.4 | P44: 58.7 | Q44: 62.8 | R44: 62.6 | S44: 64.8 | T44: 66.2 | U44: 69.2 | V44: 70.2 | W44: 71.2 | X44: 73.5 | Y44: 77 | Z44: 79.1 | AA44: 63 | AB44: 57 | AC44: 52 | AD44: 0.5 | AE44: 0 | AF44: 4.5 | AG44: 6 | AH44: -13.3 | AI44: 400 | AJ44: 543.8954148 | AK44: 0.0009765625 | AL44: 0.001953125 | AM44: 0.00390625 | AN44: 0.0078125 | AO44: 0.015625 | AP44: 0.03125 | AQ44: 0.0625 | AR44: 0.125 | AS44: 0.25 | AT44: 0.5 | AU44: 1 | AV44: 1 | AW44: 0.5 | AX44: 0.25 | AY44: 0.125 | AZ44: 0.0625 | BA44: 0.03125 | BB44: 0.015625 | BC44: 0.0078125 | BD44: 0.00390625 | BE44: 0.001953125 | BF44: -11.5 | BG44: -8.9 | BH44: 4.1 | BI44: -3.4 | BJ44: -3 | BK44: -5.5 | BL44: -3.5 | BM44: -4.5 | BN44: -8.5 | BO44: -13.3 | BP44: -7.9 | BQ44: -2.9 | BR44: 4.6 | BS44: 5.5 | BT44: 5.7 | BU44: 4.6 | BV44: 4.3 | BW44: 6.4 | BX44: 6.305887679 | BY44: 6.349942604 | BZ44: 7.107998548 | CA44: -6
A45: 384900421 | B45: 56 | C45: 38490029 | D45: 6 | F45: 45.9 | G45: 37.6 | H45: 39 | I45: 50.2 | J45: 47.1 | K45: 49.7 | L45: 48.4 | M45: 52.2 | N45: 54.8 | O45: 58.4 | P45: 58.7 | Q45: 62.8 | R45: 62.6 | S45: 64.8 | T45: 66.2 | U45: 69.2 | V45: 70.2 | W45: 71.2 | X45: 73.5 | Y45: 77 | Z45: 79.1 | AA45: 63 | AB45: 57 | AC45: 52 | AD45: 0.005 | AE45: 0 | AF45: 5.8 | AG45: 0 | AH45: -11.1 | AI45: 400 | AJ45: 479.0795773 | AK45: 0.001953125 | AL45: 0.00390625 | AM45: 0.0078125 | AN45: 0.015625 | AO45: 0.03125 | AP45: 0.0625 | AQ45: 0.125 | AR45: 0.25 | AS45: 0.5 | AT45: 1 | AU45: 1 | AV45: 0.5 | AW45: 0.25 | AX45: 0.125 | AY45: 0.0625 | AZ45: 0.03125 | BA45: 0.015625 | BB45: 0.0078125 | BC45: 0.00390625 | BD45: 0.001953125 | BE45: 0.0009765625 | BF45: -11.9 | BG45: -6.8 | BH45: 8.2 | BI45: -7 | BJ45: -2 | BK45: -2.6 | BL45: -2.1 | BM45: -3.7 | BN45: -7.3 | BO45: -11.1 | BP45: -10.5 | BQ45: -9.3 | BR45: 1.2 | BS45: 4.2 | BT45: 6.3 | BU45: 3.4 | BV45: 4.2 | BW45: 5.7 | BX45: 6.5 | BY45: 7.723516765 | BZ45: 8.502290491 | CA45: -6
A46: 384900422 | B46: 57 | C46: 38490029 | D46: 6 | F46: 45.9 | G46: 37.6 | H46: 39 | I46: 50.2 | J46: 47.1 | K46: 49.7 | L46: 48.4 | M46: 52.2 | N46: 54.8 | O46: 58.4 | P46: 58.7 | Q46: 62.8 | R46: 62.6 | S46: 64.8 | T46: 66.2 | U46: 69.2 | V46: 70.2 | W46: 71.2 | X46: 73.5 | Y46: 77 | Z46: 79.1 | AA46: 63 | AB46: 57 | AC46: 52 | AD46: 0.005 | AE46: 0 | AF46: 5.8 | AG46: 6 | AH46: -11.3 | AI46: 500 | AJ46: 479.0795773 | AK46: 0.001953125 | AL46: 0.00390625 | AM46: 0.0078125 | AN46: 0.015625 | AO46: 0.03125 | AP46: 0.0625 | AQ46: 0.125 | AR46: 0.25 | AS46: 0.5 | AT46: 1 | AU46: 1 | AV46: 0.5 | AW46: 0.25 | AX46: 0.125 | AY46: 0.0625 | AZ46: 0.03125 | BA46: 0.015625 | BB46: 0.0078125 | BC46: 0.00390625 | BD46: 0.001953125 | BE46: 0.0009765625 | BF46: -12.9 | BG46: -7 | BH46: 5.2 | BI46: -5.2 | BJ46: 0 | BK46: -2.5 | BL46: -1.5 | BM46: -3.3 | BN46: -6.6 | BO46: -10.1 | BP46: -11.3 | BQ46: -10.3 | BR46: 0.2 | BS46: 3.4 | BT46: 6.2 | BU46: 3.8 | BV46: 3.8 | BW46: 5.3 | BX46: 5.9 | BY46: 7.5 | BZ46: 7.62540051 | CA46: -6
A47: 384900427 | B47: 62 | C47: 38490029 | D47: 6 | F47: 45.9 | G47: 37.6 | H47: 39 | I47: 50.2 | J47: 47.1 | K47: 49.7 | L47: 48.4 | M47: 52.2 | N47: 54.8 | O47: 58.4 | P47: 58.7 | Q47: 62.8 | R47: 62.6 | S47: 64.8 | T47: 66.2 | U47: 69.2 | V47: 70.2 | W47: 71.2 | X47: 73.5 | Y47: 77 | Z47: 79.1 | AA47: 63 | AB47: 64 | AC47: 8 | AD47: 0.005 | AE47: 0 | AF47: 5.5 | AG47: 0 | AH47: 2.5 | AI47: 200 | AJ47: 192.9672605 | AK47: 0.03125 | AL47: 0.0625 | AM47: 0.125 | AN47: 0.25 | AO47: 0.5 | AP47: 1 | AQ47: 1 | AR47: 0.5 | AS47: 0.25 | AT47: 0.125 | AU47: 0.0625 | AV47: 0.03125 | AW47: 0.015625 | AX47: 0.0078125 | AY47: 0.00390625 | AZ47: 0.001953125 | BA47: 0.0009765625 | BB47: 0.00048828125 | BC47: 0.000244140625 | BD47: 0.0001220703125 | BE47: 6.103515625e-05 | BF47: -15.3 | BG47: -7.4 | BH47: -0.6 | BI47: -13.5 | BJ47: -7.9 | BK47: -3.8 | BL47: 2.5 | BM47: 3.9 | BN47: 4 | BO47: 5 | BP47: 7.8 | BQ47: 8 | BR47: 12.9 | BS47: 13 | BT47: 12.8 | BU47: 11.34811725 | BV47: 9.4 | BW47: 9.797828074 | BX47: 10.53655137 | BY47: 10.31469817 | BZ47: 11.11593427 | CA47: 1
A48: 384900428 | B48: 63 | C48: 38490029 | D48: 6 | F48: 45.9 | G48: 37.6 | H48: 39 | I48: 50.2 | J48: 47.1 | K48: 49.7 | L48: 48.4 | M48: 52.2 | N48: 54.8 | O48: 58.4 | P48: 58.7 | Q48: 62.8 | R48: 62.6 | S48: 64.8 | T48: 66.2 | U48: 69.2 | V48: 70.2 | W48: 71.2 | X48: 73.5 | Y48: 77 | Z48: 79.1 | AA48: 63 | AB48: 65 | AC48: 8 | AD48: 0.005 | AE48: 0 | AF48: 5.5 | AG48: 6 | AH48: 2.5 | AI48: 200 | AJ48: 192.9672605 | AK48: 0.03125 | AL48: 0.0625 | AM48: 0.125 | AN48: 0.25 | AO48: 0.5 | AP48: 1 | AQ48: 1 | AR48: 0.5 | AS48: 0.25 | AT48: 0.125 | AU48: 0.0625 | AV48: 0.03125 | AW48: 0.015625 | AX48: 0.0078125 | AY48: 0.00390625 | AZ48: 0.001953125 | BA48: 0.0009765625 | BB48: 0.00048828125 | BC48: 0.000244140625 | BD48: 0.0001220703125 | BE48: 6.103515625e-05 | BF48: -16.5 | BG48: -3.4 | BH48: -0.2 | BI48: -13.3 | BJ48: -7.2 | BK48: -2.5 | BL48: 2.5 | BM48: 5 | BN48: 5.6 | BO48: 6.7 | BP48: 8.4 | BQ48: 9.5 | BR48: 14.9 | BS48: 13.9 | BT48: 13.3 | BU48: 11.3 | BV48: 9.2 | BW48: 9 | BX48: 10.8 | BY48: 9.9 | BZ48: 11.19400977 | CA48: 2
A49: 384900429 | B49: 64 | C49: 38490029 | D49: 6 | F49: 45.9 | G49: 37.6 | H49: 39 | I49: 50.2 | J49: 47.1 | K49: 49.7 | L49: 48.4 | M49: 52.2 | N49: 54.8 | O49: 58.4 | P49: 58.7 | Q49: 62.8 | R49: 62.6 | S49: 64.8 | T49: 66.2 | U49: 69.2 | V49: 70.2 | W49: 71.2 | X49: 73.5 | Y49: 77 | Z49: 79.1 | AA49: 63 | AB49: 69 | AC49: 8 | AD49: 0.01 | AE49: 0 | AF49: 13.8 | AG49: 6 | AH49: 6.8 | AI49: 200 | AJ49: 121.821918 | AK49: 0.125 | AL49: 0.25 | AM49: 0.5 | AN49: 1 | AO49: 1 | AP49: 0.5 | AQ49: 0.25 | AR49: 0.125 | AS49: 0.0625 | AT49: 0.03125 | AU49: 0.015625 | AV49: 0.0078125 | AW49: 0.00390625 | AX49: 0.001953125 | AY49: 0.0009765625 | AZ49: 0.00048828125 | BA49: 0.000244140625 | BB49: 0.0001220703125 | BC49: 6.103515625e-05 | BD49: 3.051757812e-05 | BE49: 1.525878906e-05 | BF49: -16.8 | BG49: -5 | BH49: 1.9 | BI49: -8.5 | BJ49: 1.7 | BK49: 1 | BL49: 6.8 | BM49: 7.5 | BN49: 8.4 | BO49: 8.1 | BP49: 9.6 | BQ49: 9.3 | BR49: 15.1 | BS49: 14.4 | BT49: 13.1 | BU49: 11.5 | BV49: 9.3 | BW49: 8.7 | BX49: 8.5 | BY49: 8.5 | BZ49: 10.06760027 | CA49: 6
A50: 384900431 | B50: 66 | C50: 38490029 | D50: 6 | F50: 45.9 | G50: 37.6 | H50: 39 | I50: 50.2 | J50: 47.1 | K50: 49.7 | L50: 48.4 | M50: 52.2 | N50: 54.8 | O50: 58.4 | P50: 58.7 | Q50: 62.8 | R50: 62.6 | S50: 64.8 | T50: 66.2 | U50: 69.2 | V50: 70.2 | W50: 71.2 | X50: 73.5 | Y50: 77 | Z50: 79.1 | AA50: 63 | AB50: 58 | AC50: 11 | AD50: 0.005 | AE50: 0 | AF50: 5.9 | AG50: 6 | AH50: -10.9 | AI50: 200 | AJ50: 218.4692508 | AK50: 0.015625 | AL50: 0.03125 | AM50: 0.0625 | AN50: 0.125 | AO50: 0.25 | AP50: 0.5 | AQ50: 1 | AR50: 1 | AS50: 0.5 | AT50: 0.25 | AU50: 0.125 | AV50: 0.0625 | AW50: 0.03125 | AX50: 0.015625 | AY50: 0.0078125 | AZ50: 0.00390625 | BA50: 0.001953125 | BB50: 0.0009765625 | BC50: 0.00048828125 | BD50: 0.000244140625 | BE50: 0.0001220703125 | BF50: -13.4 | BG50: -5.7 | BH50: 5.1 | BI50: -12 | BJ50: -3.9 | BK50: -7.2 | BL50: -10.9 | BM50: -10.7 | BN50: -5 | BO50: -0.6 | BP50: 3.7 | BQ50: 0.8 | BR50: 3 | BS50: 3.7 | BT50: 4.3 | BU50: 2.9 | BV50: 3.8 | BW50: 5.9 | BX50: 7.1 | BY50: 7.191517388 | BZ50: 7.505854452 | CA50: -5

Sheet Drop_downs (hidden)
B1: 50 | C1: 63 | D1: 80 | E1: 100 | F1: 125 | G1: 160 | H1: 200 | I1: 250 | J1: 315 | K1: 400 | L1: 500 | M1: 630 | N1: 800 | O1: 1000 | P1: 1250 | Q1: 1600 | R1: 2000 | S1: 2500 | T1: 3150 | U1: 4000 | V1: 5000
A2: Grundwand auswählen
A3: SHB Beton | B3: 45.9 | C3: 37.6 | D3: 39 | E3: 50.2 | F3: 47.1 | G3: 49.7 | H3: 48.4 | I3: 52.2 | J3: 54.8 | K3: 58.4 | L3: 58.7 | M3: 62.8 | N3: 62.6 | O3: 64.8 | P3: 66.2 | Q3: 69.2 | R3: 70.2 | S3: 71.2 | T3: 73.5 | U3: 77 | V3: 79.1
A4: SHB Ziegel | B4: 29.71803882 | C4: 28.2 | D4: 37.9 | E4: 40.9 | F4: 42.4 | G4: 36.6 | H4: 38.4 | I4: 40.3 | J4: 41.2 | K4: 42.8 | L4: 46.8 | M4: 48.4 | N4: 47.3 | O4: 46.1 | P4: 40.5 | Q4: 42.4 | R4: 45.1 | S4: 48 | T4: 52.3 | U4: 55.5 | V4: 58.1
